{"text_format":"1","workbook":"xlsx","n_sheets":2,"sheets":["Calendar","Data"],"not_rendered":{"charts":0,"images":0,"macros":1,"external_links":0,"defined_names":4,"comments":0,"pivot_tables":0},"unopened":[],"bounds":{"document_bytes":16777216,"sheet_cells":100000,"rows_first":2000,"rows_last":500,"rows_between":2000,"halvings":0,"cell_chars":16384,"cell_head_chars":4096},"cells_cut":0,"cells_raw":0,"read":"whole","date_system":"1900"}

{"sheet":"Calendar","index":0,"n_rows":2907,"n_cols":90,"rows_kept":2907,"cut":false,"hidden":false,"merged":[[0,89,0,95],[6,80,7,81],[4,80,5,81],[4,75,5,79],[6,75,7,79],[4,82,5,86],[4,87,5,88],[6,82,7,86],[6,87,7,91],[0,82,1,88],[0,75,1,76],[0,77,1,81],[2902,2,2902,7],[2902,36,2902,41],[2903,2,2903,7],[2903,36,2903,41],[2904,2,2904,7],[2904,36,2904,41],[2905,2,2905,7],[2905,36,2905,41],[2893,2,2893,7],[2893,8,2905,35],[2893,36,2893,41],[2893,42,2897,69],[2894,2,2894,7],[2894,36,2894,41],[2895,2,2895,7],[2895,36,2895,41],[2896,2,2896,7],[2896,36,2896,41],[2897,2,2897,7],[2897,36,2897,41],[2898,2,2898,7],[2898,36,2898,41],[2898,42,2898,44],[2898,45,2900,69],[2899,2,2899,7],[2899,36,2899,41],[2899,42,2900,44],[2900,2,2900,7],[2900,36,2900,41],[2901,2,2901,7],[2901,36,2901,41],[2901,42,2905,69],[2890,2,2890,7],[2890,8,2890,10],[2890,11,2892,35],[2890,36,2890,41],[2890,42,2890,44],[2890,45,2892,69],[2891,2,2891,7],[2891,8,2892,10],[2891,36,2891,41],[2891,42,2892,44],[2892,2,2892,7],[2892,36,2892,41],[2884,36,2884,41],[2885,2,2885,7],[2885,36,2885,41],[2886,2,2886,7],[2886,36,2886,41],[2887,2,2887,7],[2887,36,2887,41],[2888,2,2888,7],[2888,36,2888,41],[2874,45,2876,69],[2875,2,2875,7],[2875,8,2876,10],[2875,36,2875,41],[2875,42,2876,44],[2876,2,2876,7],[2876,36,2876,41],[2877,2,2877,7],[2877,8,2889,35],[2877,36,2877,41],[2877,42,2889,69],[2878,2,2878,7],[2878,36,2878,41],[2879,2,2879,7],[2879,36,2879,41],[2880,2,2880,7],[2880,36,2880,41],[2881,2,2881,7],[2881,36,2881,41],[2882,2,2882,7],[2882,36,2882,41],[2883,2,2883,7],[2883,36,2883,41],[2884,2,2884,7],[2889,2,2889,7],[2889,36,2889,41],[2872,2,2872,7],[2872,36,2872,41],[2873,2,2873,7],[2873,36,2873,41],[2874,2,2874,7],[2874,8,2874,10],[2874,11,2876,35],[2874,36,2874,41],[2874,42,2874,44],[2861,2,2861,7],[2861,8,2873,35],[2861,36,2861,41],[2861,42,2873,69],[2862,2,2862,7],[2862,36,2862,41],[2863,2,2863,7],[2863,36,2863,41],[2864,2,2864,7],[2864,36,2864,41],[2865,2,2865,7],[2865,36,2865,41],[2866,2,2866,7],[2866,36,2866,41],[2867,2,2867,7],[2867,36,2867,41],[2868,2,2868,7],[2868,36,2868,41],[2869,2,2869,7],[2869,36,2869,41],[2870,2,2870,7],[2870,36,2870,41],[2871,2,2871,7],[2871,36,2871,41],[2858,2,2859,7],[2858,8,2858,10],[2858,11,2860,35],[2858,36,2859,41],[2858,42,2858,44],[2858,45,2860,69],[2859,8,2860,10],[2859,42,2860,44],[2860,2,2860,7],[2860,36,2860,41],[2846,2,2846,7],[2846,36,2846,41],[2847,2,2847,7],[2847,36,2847,41],[2848,2,2848,7],[2848,36,2848,41],[2849,2,2849,7],[2849,36,2849,41],[2856,2,2857,6],[2856,7,2857,24],[2856,36,2857,40],[2856,41,2857,58],[2857,34,2857,35],[2837,2,2837,7],[2837,8,2849,35],[2837,36,2837,41],[2837,42,2841,69],[2838,2,2838,7],[2838,36,2838,41],[2839,2,2839,7],[2839,36,2839,41],[2840,2,2840,7],[2840,36,2840,41],[2841,2,2841,7],[2841,36,2841,41],[2842,2,2842,7],[2842,36,2842,41],[2842,42,2842,44],[2842,45,2844,69],[2843,2,2843,7],[2843,36,2843,41],[2843,42,2844,44],[2844,2,2844,7],[2844,36,2844,41],[2845,2,2845,7],[2845,36,2845,41],[2845,42,2849,69],[2834,2,2834,7],[2834,8,2834,10],[2834,11,2836,35],[2834,36,2834,41],[2834,42,2834,44],[2834,45,2836,69],[2835,2,2835,7],[2835,8,2836,10],[2835,36,2835,41],[2835,42,2836,44],[2836,2,2836,7],[2836,36,2836,41],[2828,36,2828,41],[2829,2,2829,7],[2829,36,2829,41],[2830,2,2830,7],[2830,36,2830,41],[2831,2,2831,7],[2831,36,2831,41],[2832,2,2832,7],[2832,36,2832,41],[2818,45,2820,69],[2819,2,2819,7],[2819,8,2820,10],[2819,36,2819,41],[2819,42,2820,44],[2820,2,2820,7],[2820,36,2820,41],[2821,2,2821,7],[2821,8,2833,35],[2821,36,2821,41],[2821,42,2833,69],[2822,2,2822,7],[2822,36,2822,41],[2823,2,2823,7],[2823,36,2823,41],[2824,2,2824,7],[2824,36,2824,41],[2825,2,2825,7],[2825,36,2825,41],[2826,2,2826,7],[2826,36,2826,41],[2827,2,2827,7],[2827,36,2827,41],[2828,2,2828,7],[2833,2,2833,7],[2833,36,2833,41],[2816,2,2816,7],[2816,36,2816,41],[2817,2,2817,7],[2817,36,2817,41],[2818,2,2818,7],[2818,8,2818,10],[2818,11,2820,35],[2818,36,2818,41],[2818,42,2818,44],[2805,2,2805,7],[2805,8,2817,35],[2805,36,2805,41],[2805,42,2817,69],[2806,2,2806,7],[2806,36,2806,41],[2807,2,2807,7],[2807,36,2807,41],[2808,2,2808,7],[2808,36,2808,41],[2809,2,2809,7],[2809,36,2809,41],[2810,2,2810,7],[2810,36,2810,41],[2811,2,2811,7],[2811,36,2811,41],[2812,2,2812,7],[2812,36,2812,41],[2813,2,2813,7],[2813,36,2813,41],[2814,2,2814,7],[2814,36,2814,41],[2815,2,2815,7],[2815,36,2815,41],[2802,2,2803,7],[2802,8,2802,10],[2802,11,2804,35],[2802,36,2803,41],[2802,42,2802,44],[2802,45,2804,69],[2803,8,2804,10],[2803,42,2804,44],[2804,2,2804,7],[2804,36,2804,41],[2790,2,2790,7],[2790,36,2790,41],[2791,2,2791,7],[2791,36,2791,41],[2792,2,2792,7],[2792,36,2792,41],[2793,2,2793,7],[2793,36,2793,41],[2800,2,2801,6],[2800,7,2801,24],[2800,36,2801,40],[2800,41,2801,58],[2801,34,2801,35],[2781,2,2781,7],[2781,8,2793,35],[2781,36,2781,41],[2781,42,2785,69],[2782,2,2782,7],[2782,36,2782,41],[2783,2,2783,7],[2783,36,2783,41],[2784,2,2784,7],[2784,36,2784,41],[2785,2,2785,7],[2785,36,2785,41],[2786,2,2786,7],[2786,36,2786,41],[2786,42,2786,44],[2786,45,2788,69],[2787,2,2787,7],[2787,36,2787,41],[2787,42,2788,44],[2788,2,2788,7],[2788,36,2788,41],[2789,2,2789,7],[2789,36,2789,41],[2789,42,2793,69],[2778,2,2778,7],[2778,8,2778,10],[2778,11,2780,35],[2778,36,2778,41],[2778,42,2778,44],[2778,45,2780,69],[2779,2,2779,7],[2779,8,2780,10],[2779,36,2779,41],[2779,42,2780,44],[2780,2,2780,7],[2780,36,2780,41],[2772,36,2772,41],[2773,2,2773,7],[2773,36,2773,41],[2774,2,2774,7],[2774,36,2774,41],[2775,2,2775,7],[2775,36,2775,41],[2776,2,2776,7],[2776,36,2776,41],[2762,45,2764,69],[2763,2,2763,7],[2763,8,2764,10],[2763,36,2763,41],[2763,42,2764,44],[2764,2,2764,7],[2764,36,2764,41],[2765,2,2765,7],[2765,8,2777,35],[2765,36,2765,41],[2765,42,2777,69],[2766,2,2766,7],[2766,36,2766,41],[2767,2,2767,7],[2767,36,2767,41],[2768,2,2768,7],[2768,36,2768,41],[2769,2,2769,7],[2769,36,2769,41],[2770,2,2770,7],[2770,36,2770,41],[2771,2,2771,7],[2771,36,2771,41],[2772,2,2772,7],[2777,2,2777,7],[2777,36,2777,41],[2760,2,2760,7],[2760,36,2760,41],[2761,2,2761,7],[2761,36,2761,41],[2762,2,2762,7],[2762,8,2762,10],[2762,11,2764,35],[2762,36,2762,41],[2762,42,2762,44],[2749,2,2749,7],[2749,8,2761,35],[2749,36,2749,41],[2749,42,2761,69],[2750,2,2750,7],[2750,36,2750,41],[2751,2,2751,7],[2751,36,2751,41],[2752,2,2752,7],[2752,36,2752,41],[2753,2,2753,7],[2753,36,2753,41],[2754,2,2754,7],[2754,36,2754,41],[2755,2,2755,7],[2755,36,2755,41],[2756,2,2756,7],[2756,36,2756,41],[2757,2,2757,7],[2757,36,2757,41],[2758,2,2758,7],[2758,36,2758,41],[2759,2,2759,7],[2759,36,2759,41],[2746,2,2747,7],[2746,8,2746,10],[2746,11,2748,35],[2746,36,2747,41],[2746,42,2746,44],[2746,45,2748,69],[2747,8,2748,10],[2747,42,2748,44],[2748,2,2748,7],[2748,36,2748,41],[2734,2,2734,7],[2734,36,2734,41],[2735,2,2735,7],[2735,36,2735,41],[2736,2,2736,7],[2736,36,2736,41],[2737,2,2737,7],[2737,36,2737,41],[2744,2,2745,6],[2744,7,2745,24],[2744,36,2745,40],[2744,41,2745,58],[2745,34,2745,35],[2725,2,2725,7],[2725,8,2737,35],[2725,36,2725,41],[2725,42,2729,69],[2726,2,2726,7],[2726,36,2726,41],[2727,2,2727,7],[2727,36,2727,41],[2728,2,2728,7],[2728,36,2728,41],[2729,2,2729,7],[2729,36,2729,41],[2730,2,2730,7],[2730,36,2730,41],[2730,42,2730,44],[2730,45,2732,69],[2731,2,2731,7],[2731,36,2731,41],[2731,42,2732,44],[2732,2,2732,7],[2732,36,2732,41],[2733,2,2733,7],[2733,36,2733,41],[2733,42,2737,69],[2722,2,2722,7],[2722,8,2722,10],[2722,11,2724,35],[2722,36,2722,41],[2722,42,2722,44],[2722,45,2724,69],[2723,2,2723,7],[2723,8,2724,10],[2723,36,2723,41],[2723,42,2724,44],[2724,2,2724,7],[2724,36,2724,41],[2716,36,2716,41],[2717,2,2717,7],[2717,36,2717,41],[2718,2,2718,7],[2718,36,2718,41],[2719,2,2719,7],[2719,36,2719,41],[2720,2,2720,7],[2720,36,2720,41],[2706,45,2708,69],[2707,2,2707,7],[2707,8,2708,10],[2707,36,2707,41],[2707,42,2708,44],[2708,2,2708,7],[2708,36,2708,41],[2709,2,2709,7],[2709,8,2721,35],[2709,36,2709,41],[2709,42,2721,69],[2710,2,2710,7],[2710,36,2710,41],[2711,2,2711,7],[2711,36,2711,41],[2712,2,2712,7],[2712,36,2712,41],[2713,2,2713,7],[2713,36,2713,41],[2714,2,2714,7],[2714,36,2714,41],[2715,2,2715,7],[2715,36,2715,41],[2716,2,2716,7],[2721,2,2721,7],[2721,36,2721,41],[2704,2,2704,7],[2704,36,2704,41],[2705,2,2705,7],[2705,36,2705,41],[2706,2,2706,7],[2706,8,2706,10],[2706,11,2708,35],[2706,36,2706,41],[2706,42,2706,44],[2693,2,2693,7],[2693,8,2705,35],[2693,36,2693,41],[2693,42,2705,69],[2694,2,2694,7],[2694,36,2694,41],[2695,2,2695,7],[2695,36,2695,41],[2696,2,2696,7],[2696,36,2696,41],[2697,2,2697,7],[2697,36,2697,41],[2698,2,2698,7],[2698,36,2698,41],[2699,2,2699,7],[2699,36,2699,41],[2700,2,2700,7],[2700,36,2700,41],[2701,2,2701,7],[2701,36,2701,41],[2702,2,2702,7],[2702,36,2702,41],[2703,2,2703,7],[2703,36,2703,41],[2690,2,2691,7],[2690,8,2690,10],[2690,11,2692,35],[2690,36,2691,41],[2690,42,2690,44],[2690,45,2692,69],[2691,8,2692,10],[2691,42,2692,44],[2692,2,2692,7],[2692,36,2692,41],[2678,2,2678,7],[2678,36,2678,41],[2679,2,2679,7],[2679,36,2679,41],[2680,2,2680,7],[2680,36,2680,41],[2681,2,2681,7],[2681,36,2681,41],[2688,2,2689,6],[2688,7,2689,24],[2688,36,2689,40],[2688,41,2689,58],[2689,34,2689,35],[2669,2,2669,7],[2669,8,2681,35],[2669,36,2669,41],[2669,42,2673,69],[2670,2,2670,7],[2670,36,2670,41],[2671,2,2671,7],[2671,36,2671,41],[2672,2,2672,7],[2672,36,2672,41],[2673,2,2673,7],[2673,36,2673,41],[2674,2,2674,7],[2674,36,2674,41],[2674,42,2674,44],[2674,45,2676,69],[2675,2,2675,7],[2675,36,2675,41],[2675,42,2676,44],[2676,2,2676,7],[2676,36,2676,41],[2677,2,2677,7],[2677,36,2677,41],[2677,42,2681,69],[2666,2,2666,7],[2666,8,2666,10],[2666,11,2668,35],[2666,36,2666,41],[2666,42,2666,44],[2666,45,2668,69],[2667,2,2667,7],[2667,8,2668,10],[2667,36,2667,41],[2667,42,2668,44],[2668,2,2668,7],[2668,36,2668,41],[2660,36,2660,41],[2661,2,2661,7],[2661,36,2661,41],[2662,2,2662,7],[2662,36,2662,41],[2663,2,2663,7],[2663,36,2663,41],[2664,2,2664,7],[2664,36,2664,41],[2650,45,2652,69],[2651,2,2651,7],[2651,8,2652,10],[2651,36,2651,41],[2651,42,2652,44],[2652,2,2652,7],[2652,36,2652,41],[2653,2,2653,7],[2653,8,2665,35],[2653,36,2653,41],[2653,42,2665,69],[2654,2,2654,7],[2654,36,2654,41],[2655,2,2655,7],[2655,36,2655,41],[2656,2,2656,7],[2656,36,2656,41],[2657,2,2657,7],[2657,36,2657,41],[2658,2,2658,7],[2658,36,2658,41],[2659,2,2659,7],[2659,36,2659,41],[2660,2,2660,7],[2665,2,2665,7],[2665,36,2665,41],[2648,2,2648,7],[2648,36,2648,41],[2649,2,2649,7],[2649,36,2649,41],[2650,2,2650,7],[2650,8,2650,10],[2650,11,2652,35],[2650,36,2650,41],[2650,42,2650,44],[2637,2,2637,7],[2637,8,2649,35],[2637,36,2637,41],[2637,42,2649,69],[2638,2,2638,7],[2638,36,2638,41],[2639,2,2639,7],[2639,36,2639,41],[2640,2,2640,7],[2640,36,2640,41],[2641,2,2641,7],[2641,36,2641,41],[2642,2,2642,7],[2642,36,2642,41],[2643,2,2643,7],[2643,36,2643,41],[2644,2,2644,7],[2644,36,2644,41],[2645,2,2645,7],[2645,36,2645,41],[2646,2,2646,7],[2646,36,2646,41],[2647,2,2647,7],[2647,36,2647,41],[2634,2,2635,7],[2634,8,2634,10],[2634,11,2636,35],[2634,36,2635,41],[2634,42,2634,44],[2634,45,2636,69],[2635,8,2636,10],[2635,42,2636,44],[2636,2,2636,7],[2636,36,2636,41],[2622,2,2622,7],[2622,36,2622,41],[2623,2,2623,7],[2623,36,2623,41],[2624,2,2624,7],[2624,36,2624,41],[2625,2,2625,7],[2625,36,2625,41],[2632,2,2633,6],[2632,7,2633,24],[2632,36,2633,40],[2632,41,2633,58],[2633,34,2633,35],[2613,2,2613,7],[2613,8,2625,35],[2613,36,2613,41],[2613,42,2617,69],[2614,2,2614,7],[2614,36,2614,41],[2615,2,2615,7],[2615,36,2615,41],[2616,2,2616,7],[2616,36,2616,41],[2617,2,2617,7],[2617,36,2617,41],[2618,2,2618,7],[2618,36,2618,41],[2618,42,2618,44],[2618,45,2620,69],[2619,2,2619,7],[2619,36,2619,41],[2619,42,2620,44],[2620,2,2620,7],[2620,36,2620,41],[2621,2,2621,7],[2621,36,2621,41],[2621,42,2625,69],[2610,2,2610,7],[2610,8,2610,10],[2610,11,2612,35],[2610,36,2610,41],[2610,42,2610,44],[2610,45,2612,69],[2611,2,2611,7],[2611,8,2612,10],[2611,36,2611,41],[2611,42,2612,44],[2612,2,2612,7],[2612,36,2612,41],[2604,36,2604,41],[2605,2,2605,7],[2605,36,2605,41],[2606,2,2606,7],[2606,36,2606,41],[2607,2,2607,7],[2607,36,2607,41],[2608,2,2608,7],[2608,36,2608,41],[2594,45,2596,69],[2595,2,2595,7],[2595,8,2596,10],[2595,36,2595,41],[2595,42,2596,44],[2596,2,2596,7],[2596,36,2596,41],[2597,2,2597,7],[2597,8,2609,35],[2597,36,2597,41],[2597,42,2609,69],[2598,2,2598,7],[2598,36,2598,41],[2599,2,2599,7],[2599,36,2599,41],[2600,2,2600,7],[2600,36,2600,41],[2601,2,2601,7],[2601,36,2601,41],[2602,2,2602,7],[2602,36,2602,41],[2603,2,2603,7],[2603,36,2603,41],[2604,2,2604,7],[2609,2,2609,7],[2609,36,2609,41],[2592,2,2592,7],[2592,36,2592,41],[2593,2,2593,7],[2593,36,2593,41],[2594,2,2594,7],[2594,8,2594,10],[2594,11,2596,35],[2594,36,2594,41],[2594,42,2594,44],[2581,2,2581,7],[2581,8,2593,35],[2581,36,2581,41],[2581,42,2593,69],[2582,2,2582,7],[2582,36,2582,41],[2583,2,2583,7],[2583,36,2583,41],[2584,2,2584,7],[2584,36,2584,41],[2585,2,2585,7],[2585,36,2585,41],[2586,2,2586,7],[2586,36,2586,41],[2587,2,2587,7],[2587,36,2587,41],[2588,2,2588,7],[2588,36,2588,41],[2589,2,2589,7],[2589,36,2589,41],[2590,2,2590,7],[2590,36,2590,41],[2591,2,2591,7],[2591,36,2591,41],[2578,2,2579,7],[2578,8,2578,10],[2578,11,2580,35],[2578,36,2579,41],[2578,42,2578,44],[2578,45,2580,69],[2579,8,2580,10],[2579,42,2580,44],[2580,2,2580,7],[2580,36,2580,41],[2566,2,2566,7],[2566,36,2566,41],[2567,2,2567,7],[2567,36,2567,41],[2568,2,2568,7],[2568,36,2568,41],[2569,2,2569,7],[2569,36,2569,41],[2576,2,2577,6],[2576,7,2577,24],[2576,36,2577,40],[2576,41,2577,58],[2577,34,2577,35],[2557,2,2557,7],[2557,8,2569,35],[2557,36,2557,41],[2557,42,2561,69],[2558,2,2558,7],[2558,36,2558,41],[2559,2,2559,7],[2559,36,2559,41],[2560,2,2560,7],[2560,36,2560,41],[2561,2,2561,7],[2561,36,2561,41],[2562,2,2562,7],[2562,36,2562,41],[2562,42,2562,44],[2562,45,2564,69],[2563,2,2563,7],[2563,36,2563,41],[2563,42,2564,44],[2564,2,2564,7],[2564,36,2564,41],[2565,2,2565,7],[2565,36,2565,41],[2565,42,2569,69],[2554,2,2554,7],[2554,8,2554,10],[2554,11,2556,35],[2554,36,2554,41],[2554,42,2554,44],[2554,45,2556,69],[2555,2,2555,7],[2555,8,2556,10],[2555,36,2555,41],[2555,42,2556,44],[2556,2,2556,7],[2556,36,2556,41],[2548,36,2548,41],[2549,2,2549,7],[2549,36,2549,41],[2550,2,2550,7],[2550,36,2550,41],[2551,2,2551,7],[2551,36,2551,41],[2552,2,2552,7],[2552,36,2552,41],[2538,45,2540,69],[2539,2,2539,7],[2539,8,2540,10],[2539,36,2539,41],[2539,42,2540,44],[2540,2,2540,7],[2540,36,2540,41],[2541,2,2541,7],[2541,8,2553,35],[2541,36,2541,41],[2541,42,2553,69],[2542,2,2542,7],[2542,36,2542,41],[2543,2,2543,7],[2543,36,2543,41],[2544,2,2544,7],[2544,36,2544,41],[2545,2,2545,7],[2545,36,2545,41],[2546,2,2546,7],[2546,36,2546,41],[2547,2,2547,7],[2547,36,2547,41],[2548,2,2548,7],[2553,2,2553,7],[2553,36,2553,41],[2536,2,2536,7],[2536,36,2536,41],[2537,2,2537,7],[2537,36,2537,41],[2538,2,2538,7],[2538,8,2538,10],[2538,11,2540,35],[2538,36,2538,41],[2538,42,2538,44],[2525,2,2525,7],[2525,8,2537,35],[2525,36,2525,41],[2525,42,2537,69],[2526,2,2526,7],[2526,36,2526,41],[2527,2,2527,7],[2527,36,2527,41],[2528,2,2528,7],[2528,36,2528,41],[2529,2,2529,7],[2529,36,2529,41],[2530,2,2530,7],[2530,36,2530,41],[2531,2,2531,7],[2531,36,2531,41],[2532,2,2532,7],[2532,36,2532,41],[2533,2,2533,7],[2533,36,2533,41],[2534,2,2534,7],[2534,36,2534,41],[2535,2,2535,7],[2535,36,2535,41],[2522,2,2523,7],[2522,8,2522,10],[2522,11,2524,35],[2522,36,2523,41],[2522,42,2522,44],[2522,45,2524,69],[2523,8,2524,10],[2523,42,2524,44],[2524,2,2524,7],[2524,36,2524,41],[2510,2,2510,7],[2510,36,2510,41],[2511,2,2511,7],[2511,36,2511,41],[2512,2,2512,7],[2512,36,2512,41],[2513,2,2513,7],[2513,36,2513,41],[2520,2,2521,6],[2520,7,2521,24],[2520,36,2521,40],[2520,41,2521,58],[2521,34,2521,35],[2501,2,2501,7],[2501,8,2513,35],[2501,36,2501,41],[2501,42,2505,69],[2502,2,2502,7],[2502,36,2502,41],[2503,2,2503,7],[2503,36,2503,41],[2504,2,2504,7],[2504,36,2504,41],[2505,2,2505,7],[2505,36,2505,41],[2506,2,2506,7],[2506,36,2506,41],[2506,42,2506,44],[2506,45,2508,69],[2507,2,2507,7],[2507,36,2507,41],[2507,42,2508,44],[2508,2,2508,7],[2508,36,2508,41],[2509,2,2509,7],[2509,36,2509,41],[2509,42,2513,69],[2498,2,2498,7],[2498,8,2498,10],[2498,11,2500,35],[2498,36,2498,41],[2498,42,2498,44],[2498,45,2500,69],[2499,2,2499,7],[2499,8,2500,10],[2499,36,2499,41],[2499,42,2500,44],[2500,2,2500,7],[2500,36,2500,41],[2492,36,2492,41],[2493,2,2493,7],[2493,36,2493,41],[2494,2,2494,7],[2494,36,2494,41],[2495,2,2495,7],[2495,36,2495,41],[2496,2,2496,7],[2496,36,2496,41],[2482,45,2484,69],[2483,2,2483,7],[2483,8,2484,10],[2483,36,2483,41],[2483,42,2484,44],[2484,2,2484,7],[2484,36,2484,41],[2485,2,2485,7],[2485,8,2497,35],[2485,36,2485,41],[2485,42,2497,69],[2486,2,2486,7],[2486,36,2486,41],[2487,2,2487,7],[2487,36,2487,41],[2488,2,2488,7],[2488,36,2488,41],[2489,2,2489,7],[2489,36,2489,41],[2490,2,2490,7],[2490,36,2490,41],[2491,2,2491,7],[2491,36,2491,41],[2492,2,2492,7],[2497,2,2497,7],[2497,36,2497,41],[2480,2,2480,7],[2480,36,2480,41],[2481,2,2481,7],[2481,36,2481,41],[2482,2,2482,7],[2482,8,2482,10],[2482,11,2484,35],[2482,36,2482,41],[2482,42,2482,44],[2469,2,2469,7],[2469,8,2481,35],[2469,36,2469,41],[2469,42,2481,69],[2470,2,2470,7],[2470,36,2470,41],[2471,2,2471,7],[2471,36,2471,41],[2472,2,2472,7],[2472,36,2472,41],[2473,2,2473,7]],"merged_total":6616,"flags":["merged_cut"]}
[null,null,{"$f":"\"Week of \"","v":"Week of "},null,null,null,null,"2024-12-30",null,null,null,null,null,null,null,null,null,null,null,null,null,null,null,null,null,null,null,null,null,null,null,null,null,null,"Week",null,{"$f":"\"Week of \"","v":"Week of "},null,null,null,null,{"$f":"H1","v":"2024-12-30"},null,null,null,null,null,null,null,null,null,null,null,null,null,null,null,null,null,null,null,null,null,null,null,null,null,null,null,null,null,null,null,null,null,"Year",null,2025,null,null,null,null,{"$f":"DATE(BZ1,1,1)-(WEEKDAY(DATE(BZ1,1,1))-2)","v":"2024-12-30"},null,null,null,null,null,null,"2024-12-30"]
[null,null,null,null,null,null,null,null,null,null,null,null,null,null,null,null,null,null,null,null,null,null,null,null,null,null,null,null,null,null,null,null,null,null,1]
[null,null,"TO DO",null,null,null,null,null,"Mon",null,null,null,null,null,null,null,null,null,null,null,null,null,null,null,null,null,null,null,null,null,null,null,null,null,null,null,"FORWARD",null,null,null,null,null,"Thu"]
[null,null,null,null,null,null,null,null,{"$f":"H1","v":"2024-12-30"},null,null,null,null,null,null,null,null,null,null,null,null,null,null,null,null,null,null,null,null,null,null,null,null,null,null,null,null,null,null,null,null,null,{"$f":"I36+1","v":"2025-01-02"}]
[null,null,null,null,null,null,null,null,null,null,null,null,null,null,null,null,null,null,null,null,null,null,null,null,null,null,null,null,null,null,null,null,null,null,null,null,null,null,null,null,null,null,null,null,null,null,null,null,null,null,null,null,null,null,null,null,null,null,null,null,null,null,null,null,null,null,null,null,null,null,null,null,null,null,null,"Start Week #",null,null,null,null,1,null,"End week:",null,null,null,null,{"$f":"CC7+CC5-1","v":13}]
[]
[null,null,null,null,null,null,null,null,null,null,null,null,null,null,null,null,null,null,null,null,null,null,null,null,null,null,null,null,null,null,null,null,null,null,null,null,null,null,null,null,null,null,null,null,null,null,null,null,null,null,null,null,null,null,null,null,null,null,null,null,null,null,null,null,null,null,null,null,null,null,null,null,null,null,null,"Print # Weeks:",null,null,null,null,13,null,"Print Range",null,null,null,null,{"$f":"\"$A$\"&_xlfn.XLOOKUP(CC5,Data!B2:B53,Data!A2:A53)&\":\"&\"$BT$\"&_xlfn.XLOOKUP(CJ5,Data!B2:B53,Data!C2:C53)","v":"$A$1:$BT$728"}]
[]
[]
[]
[]
[]
[]
[]
[]
[]
[]
[]
[null,null,null,null,null,null,null,null,"Tue",null,null,null,null,null,null,null,null,null,null,null,null,null,null,null,null,null,null,null,null,null,null,null,null,null,null,null,null,null,null,null,null,null,"Fri"]
[null,null,null,null,null,null,null,null,{"$f":"I4+1","v":"2024-12-31"},null,null,null,null,null,null,null,null,null,null,null,null,null,null,null,null,null,null,null,null,null,null,null,null,null,null,null,null,null,null,null,null,null,{"$f":"AQ4+1","v":"2025-01-03"}]
[]
[]
[]
[]
[]
[]
[]
[]
[]
[]
[]
[]
[]
[]
[null,null,null,null,null,null,null,null,"Wed",null,null,null,null,null,null,null,null,null,null,null,null,null,null,null,null,null,null,null,null,null,null,null,null,null,null,null,null,null,null,null,null,null,"Sat"]
[null,null,null,null,null,null,null,null,{"$f":"I20+1","v":"2025-01-01"},null,null,null,null,null,null,null,null,null,null,null,null,null,null,null,null,null,null,null,null,null,null,null,null,null,null,null,null,null,null,null,null,null,{"$f":"AQ20+1","v":"2025-01-04"}]
[]
[]
[]
[]
[]
[]
[null,null,null,null,null,null,null,null,null,null,null,null,null,null,null,null,null,null,null,null,null,null,null,null,null,null,null,null,null,null,null,null,null,null,null,null,null,null,null,null,null,null,"Sun"]
[null,null,null,null,null,null,null,null,null,null,null,null,null,null,null,null,null,null,null,null,null,null,null,null,null,null,null,null,null,null,null,null,null,null,null,null,null,null,null,null,null,null,{"$f":"AQ36+1","v":"2025-01-05"}]
[]
[]
[]
[]
[]
[]
[null,null,"Notes:",null,null,null,null,null,null,null,null,null,null,null,null,null,null,null,null,null,null,null,null,null,null,null,null,null,null,null,null,null,null,null,null,null,"Notes:"]
[]
[]
[]
[]
[]
[null,null,{"$f":"\"Week of \"","v":"Week of "},null,null,null,null,"2025-01-06",null,null,null,null,null,null,null,null,null,null,null,null,null,null,null,null,null,null,null,null,null,null,null,null,null,null,"Week",null,{"$f":"\"Week of \"","v":"Week of "},null,null,null,null,{"$f":"H57","v":"2025-01-06"}]
[null,null,null,null,null,null,null,null,null,null,null,null,null,null,null,null,null,null,null,null,null,null,null,null,null,null,null,null,null,null,null,null,null,null,2]
[null,null,"TO DO",null,null,null,null,null,"Mon",null,null,null,null,null,null,null,null,null,null,null,null,null,null,null,null,null,null,null,null,null,null,null,null,null,null,null,"FORWARD",null,null,null,null,null,"Thu"]
[null,null,null,null,null,null,null,null,{"$f":"H57","v":"2025-01-06"},null,null,null,null,null,null,null,null,null,null,null,null,null,null,null,null,null,null,null,null,null,null,null,null,null,null,null,null,null,null,null,null,null,{"$f":"I92+1","v":"2025-01-09"}]
[]
[]
[]
[]
[]
[]
[]
[]
[]
[]
[]
[]
[]
[]
[null,null,null,null,null,null,null,null,"Tue",null,null,null,null,null,null,null,null,null,null,null,null,null,null,null,null,null,null,null,null,null,null,null,null,null,null,null,null,null,null,null,null,null,"Fri"]
[null,null,null,null,null,null,null,null,{"$f":"I60+1","v":"2025-01-07"},null,null,null,null,null,null,null,null,null,null,null,null,null,null,null,null,null,null,null,null,null,null,null,null,null,null,null,null,null,null,null,null,null,{"$f":"AQ60+1","v":"2025-01-10"}]
[]
[]
[]
[]
[]
[]
[]
[]
[]
[]
[]
[]
[]
[]
[null,null,null,null,null,null,null,null,"Wed",null,null,null,null,null,null,null,null,null,null,null,null,null,null,null,null,null,null,null,null,null,null,null,null,null,null,null,null,null,null,null,null,null,"Sat"]
[null,null,null,null,null,null,null,null,{"$f":"I76+1","v":"2025-01-08"},null,null,null,null,null,null,null,null,null,null,null,null,null,null,null,null,null,null,null,null,null,null,null,null,null,null,null,null,null,null,null,null,null,{"$f":"AQ76+1","v":"2025-01-11"}]
[]
[]
[]
[]
[]
[]
[null,null,null,null,null,null,null,null,null,null,null,null,null,null,null,null,null,null,null,null,null,null,null,null,null,null,null,null,null,null,null,null,null,null,null,null,null,null,null,null,null,null,"Sun"]
[null,null,null,null,null,null,null,null,null,null,null,null,null,null,null,null,null,null,null,null,null,null,null,null,null,null,null,null,null,null,null,null,null,null,null,null,null,null,null,null,null,null,{"$f":"AQ92+1","v":"2025-01-12"}]
[]
[]
[]
[]
[]
[]
[null,null,"Notes:",null,null,null,null,null,null,null,null,null,null,null,null,null,null,null,null,null,null,null,null,null,null,null,null,null,null,null,null,null,null,null,null,null,"Notes:"]
[]
[]
[]
[]
[]
[null,null,{"$f":"\"Week of \"","v":"Week of "},null,null,null,null,"2025-01-13",null,null,null,null,null,null,null,null,null,null,null,null,null,null,null,null,null,null,null,null,null,null,null,null,null,null,"Week",null,{"$f":"\"Week of \"","v":"Week of "},null,null,null,null,{"$f":"H113","v":"2025-01-13"}]
[null,null,null,null,null,null,null,null,null,null,null,null,null,null,null,null,null,null,null,null,null,null,null,null,null,null,null,null,null,null,null,null,null,null,3]
[null,null,"TO DO",null,null,null,null,null,"Mon",null,null,null,null,null,null,null,null,null,null,null,null,null,null,null,null,null,null,null,null,null,null,null,null,null,null,null,"FORWARD",null,null,null,null,null,"Thu"]
[null,null,null,null,null,null,null,null,{"$f":"H113","v":"2025-01-13"},null,null,null,null,null,null,null,null,null,null,null,null,null,null,null,null,null,null,null,null,null,null,null,null,null,null,null,null,null,null,null,null,null,{"$f":"I148+1","v":"2025-01-16"}]
[]
[]
[]
[]
[]
[]
[]
[]
[]
[]
[]
[]
[]
[]
[null,null,null,null,null,null,null,null,"Tue",null,null,null,null,null,null,null,null,null,null,null,null,null,null,null,null,null,null,null,null,null,null,null,null,null,null,null,null,null,null,null,null,null,"Fri"]
[null,null,null,null,null,null,null,null,{"$f":"I116+1","v":"2025-01-14"},null,null,null,null,null,null,null,null,null,null,null,null,null,null,null,null,null,null,null,null,null,null,null,null,null,null,null,null,null,null,null,null,null,{"$f":"AQ116+1","v":"2025-01-17"}]
[]
[]
[]
[]
[]
[]
[]
[]
[]
[]
[]
[]
[]
[]
[null,null,null,null,null,null,null,null,"Wed",null,null,null,null,null,null,null,null,null,null,null,null,null,null,null,null,null,null,null,null,null,null,null,null,null,null,null,null,null,null,null,null,null,"Sat"]
[null,null,null,null,null,null,null,null,{"$f":"I132+1","v":"2025-01-15"},null,null,null,null,null,null,null,null,null,null,null,null,null,null,null,null,null,null,null,null,null,null,null,null,null,null,null,null,null,null,null,null,null,{"$f":"AQ132+1","v":"2025-01-18"}]
[]
[]
[]
[]
[]
[]
[null,null,null,null,null,null,null,null,null,null,null,null,null,null,null,null,null,null,null,null,null,null,null,null,null,null,null,null,null,null,null,null,null,null,null,null,null,null,null,null,null,null,"Sun"]
[null,null,null,null,null,null,null,null,null,null,null,null,null,null,null,null,null,null,null,null,null,null,null,null,null,null,null,null,null,null,null,null,null,null,null,null,null,null,null,null,null,null,{"$f":"AQ148+1","v":"2025-01-19"}]
[]
[]
[]
[]
[]
[]
[null,null,"Notes:",null,null,null,null,null,null,null,null,null,null,null,null,null,null,null,null,null,null,null,null,null,null,null,null,null,null,null,null,null,null,null,null,null,"Notes:"]
[]
[]
[]
[]
[]
[null,null,{"$f":"\"Week of \"","v":"Week of "},null,null,null,null,"2025-01-20",null,null,null,null,null,null,null,null,null,null,null,null,null,null,null,null,null,null,null,null,null,null,null,null,null,null,"Week",null,{"$f":"\"Week of \"","v":"Week of "},null,null,null,null,{"$f":"H169","v":"2025-01-20"}]
[null,null,null,null,null,null,null,null,null,null,null,null,null,null,null,null,null,null,null,null,null,null,null,null,null,null,null,null,null,null,null,null,null,null,4]
[null,null,"TO DO",null,null,null,null,null,"Mon",null,null,null,null,null,null,null,null,null,null,null,null,null,null,null,null,null,null,null,null,null,null,null,null,null,null,null,"FORWARD",null,null,null,null,null,"Thu"]
[null,null,null,null,null,null,null,null,{"$f":"H169","v":"2025-01-20"},null,null,null,null,null,null,null,null,null,null,null,null,null,null,null,null,null,null,null,null,null,null,null,null,null,null,null,null,null,null,null,null,null,{"$f":"I204+1","v":"2025-01-23"}]
[]
[]
[]
[]
[]
[]
[]
[]
[]
[]
[]
[]
[]
[]
[null,null,null,null,null,null,null,null,"Tue",null,null,null,null,null,null,null,null,null,null,null,null,null,null,null,null,null,null,null,null,null,null,null,null,null,null,null,null,null,null,null,null,null,"Fri"]
[null,null,null,null,null,null,null,null,{"$f":"I172+1","v":"2025-01-21"},null,null,null,null,null,null,null,null,null,null,null,null,null,null,null,null,null,null,null,null,null,null,null,null,null,null,null,null,null,null,null,null,null,{"$f":"AQ172+1","v":"2025-01-24"}]
[]
[]
[]
[]
[]
[]
[]
[]
[]
[]
[]
[]
[]
[]
[null,null,null,null,null,null,null,null,"Wed",null,null,null,null,null,null,null,null,null,null,null,null,null,null,null,null,null,null,null,null,null,null,null,null,null,null,null,null,null,null,null,null,null,"Sat"]
[null,null,null,null,null,null,null,null,{"$f":"I188+1","v":"2025-01-22"},null,null,null,null,null,null,null,null,null,null,null,null,null,null,null,null,null,null,null,null,null,null,null,null,null,null,null,null,null,null,null,null,null,{"$f":"AQ188+1","v":"2025-01-25"}]
[]
[]
[]
[]
[]
[]
[null,null,null,null,null,null,null,null,null,null,null,null,null,null,null,null,null,null,null,null,null,null,null,null,null,null,null,null,null,null,null,null,null,null,null,null,null,null,null,null,null,null,"Sun"]
[null,null,null,null,null,null,null,null,null,null,null,null,null,null,null,null,null,null,null,null,null,null,null,null,null,null,null,null,null,null,null,null,null,null,null,null,null,null,null,null,null,null,{"$f":"AQ204+1","v":"2025-01-26"}]
[]
[]
[]
[]
[]
[]
[null,null,"Notes:",null,null,null,null,null,null,null,null,null,null,null,null,null,null,null,null,null,null,null,null,null,null,null,null,null,null,null,null,null,null,null,null,null,"Notes:"]
[]
[]
[]
[]
[]
[null,null,{"$f":"\"Week of \"","v":"Week of "},null,null,null,null,"2025-01-27",null,null,null,null,null,null,null,null,null,null,null,null,null,null,null,null,null,null,null,null,null,null,null,null,null,null,"Week",null,{"$f":"\"Week of \"","v":"Week of "},null,null,null,null,{"$f":"H225","v":"2025-01-27"}]
[null,null,null,null,null,null,null,null,null,null,null,null,null,null,null,null,null,null,null,null,null,null,null,null,null,null,null,null,null,null,null,null,null,null,5]
[null,null,"TO DO",null,null,null,null,null,"Mon",null,null,null,null,null,null,null,null,null,null,null,null,null,null,null,null,null,null,null,null,null,null,null,null,null,null,null,"FORWARD",null,null,null,null,null,"Thu"]
[null,null,null,null,null,null,null,null,{"$f":"H225","v":"2025-01-27"},null,null,null,null,null,null,null,null,null,null,null,null,null,null,null,null,null,null,null,null,null,null,null,null,null,null,null,null,null,null,null,null,null,{"$f":"I260+1","v":"2025-01-30"}]
[]
[]
[]
[]
[]
[]
[]
[]
[]
[]
[]
[]
[]
[]
[null,null,null,null,null,null,null,null,"Tue",null,null,null,null,null,null,null,null,null,null,null,null,null,null,null,null,null,null,null,null,null,null,null,null,null,null,null,null,null,null,null,null,null,"Fri"]
[null,null,null,null,null,null,null,null,{"$f":"I228+1","v":"2025-01-28"},null,null,null,null,null,null,null,null,null,null,null,null,null,null,null,null,null,null,null,null,null,null,null,null,null,null,null,null,null,null,null,null,null,{"$f":"AQ228+1","v":"2025-01-31"}]
[]
[]
[]
[]
[]
[]
[]
[]
[]
[]
[]
[]
[]
[]
[null,null,null,null,null,null,null,null,"Wed",null,null,null,null,null,null,null,null,null,null,null,null,null,null,null,null,null,null,null,null,null,null,null,null,null,null,null,null,null,null,null,null,null,"Sat"]
[null,null,null,null,null,null,null,null,{"$f":"I244+1","v":"2025-01-29"},null,null,null,null,null,null,null,null,null,null,null,null,null,null,null,null,null,null,null,null,null,null,null,null,null,null,null,null,null,null,null,null,null,{"$f":"AQ244+1","v":"2025-02-01"}]
[]
[]
[]
[]
[]
[]
[null,null,null,null,null,null,null,null,null,null,null,null,null,null,null,null,null,null,null,null,null,null,null,null,null,null,null,null,null,null,null,null,null,null,null,null,null,null,null,null,null,null,"Sun"]
[null,null,null,null,null,null,null,null,null,null,null,null,null,null,null,null,null,null,null,null,null,null,null,null,null,null,null,null,null,null,null,null,null,null,null,null,null,null,null,null,null,null,{"$f":"AQ260+1","v":"2025-02-02"}]
[]
[]
[]
[]
[]
[]
[null,null,"Notes:",null,null,null,null,null,null,null,null,null,null,null,null,null,null,null,null,null,null,null,null,null,null,null,null,null,null,null,null,null,null,null,null,null,"Notes:"]
[]
[]
[]
[]
[]
[null,null,{"$f":"\"Week of \"","v":"Week of "},null,null,null,null,"2025-02-03",null,null,null,null,null,null,null,null,null,null,null,null,null,null,null,null,null,null,null,null,null,null,null,null,null,null,"Week",null,{"$f":"\"Week of \"","v":"Week of "},null,null,null,null,{"$f":"H281","v":"2025-02-03"}]
[null,null,null,null,null,null,null,null,null,null,null,null,null,null,null,null,null,null,null,null,null,null,null,null,null,null,null,null,null,null,null,null,null,null,6]
[null,null,"TO DO",null,null,null,null,null,"Mon",null,null,null,null,null,null,null,null,null,null,null,null,null,null,null,null,null,null,null,null,null,null,null,null,null,null,null,"FORWARD",null,null,null,null,null,"Thu"]
[null,null,null,null,null,null,null,null,{"$f":"H281","v":"2025-02-03"},null,null,null,null,null,null,null,null,null,null,null,null,null,null,null,null,null,null,null,null,null,null,null,null,null,null,null,null,null,null,null,null,null,{"$f":"I316+1","v":"2025-02-06"}]
[]
[]
[]
[]
[]
[]
[]
[]
[]
[]
[]
[]
[]
[]
[null,null,null,null,null,null,null,null,"Tue",null,null,null,null,null,null,null,null,null,null,null,null,null,null,null,null,null,null,null,null,null,null,null,null,null,null,null,null,null,null,null,null,null,"Fri"]
[null,null,null,null,null,null,null,null,{"$f":"I284+1","v":"2025-02-04"},null,null,null,null,null,null,null,null,null,null,null,null,null,null,null,null,null,null,null,null,null,null,null,null,null,null,null,null,null,null,null,null,null,{"$f":"AQ284+1","v":"2025-02-07"}]
[]
[]
[]
[]
[]
[]
[]
[]
[]
[]
[]
[]
[]
[]
[null,null,null,null,null,null,null,null,"Wed",null,null,null,null,null,null,null,null,null,null,null,null,null,null,null,null,null,null,null,null,null,null,null,null,null,null,null,null,null,null,null,null,null,"Sat"]
[null,null,null,null,null,null,null,null,{"$f":"I300+1","v":"2025-02-05"},null,null,null,null,null,null,null,null,null,null,null,null,null,null,null,null,null,null,null,null,null,null,null,null,null,null,null,null,null,null,null,null,null,{"$f":"AQ300+1","v":"2025-02-08"}]
[]
[]
[]
[]
[]
[]
[null,null,null,null,null,null,null,null,null,null,null,null,null,null,null,null,null,null,null,null,null,null,null,null,null,null,null,null,null,null,null,null,null,null,null,null,null,null,null,null,null,null,"Sun"]
[null,null,null,null,null,null,null,null,null,null,null,null,null,null,null,null,null,null,null,null,null,null,null,null,null,null,null,null,null,null,null,null,null,null,null,null,null,null,null,null,null,null,{"$f":"AQ316+1","v":"2025-02-09"}]
[]
[]
[]
[]
[]
[]
[null,null,"Notes:",null,null,null,null,null,null,null,null,null,null,null,null,null,null,null,null,null,null,null,null,null,null,null,null,null,null,null,null,null,null,null,null,null,"Notes:"]
[]
[]
[]
[]
[]
[null,null,{"$f":"\"Week of \"","v":"Week of "},null,null,null,null,"2025-02-10",null,null,null,null,null,null,null,null,null,null,null,null,null,null,null,null,null,null,null,null,null,null,null,null,null,null,"Week",null,{"$f":"\"Week of \"","v":"Week of "},null,null,null,null,{"$f":"H337","v":"2025-02-10"}]
[null,null,null,null,null,null,null,null,null,null,null,null,null,null,null,null,null,null,null,null,null,null,null,null,null,null,null,null,null,null,null,null,null,null,7]
[null,null,"TO DO",null,null,null,null,null,"Mon",null,null,null,null,null,null,null,null,null,null,null,null,null,null,null,null,null,null,null,null,null,null,null,null,null,null,null,"FORWARD",null,null,null,null,null,"Thu"]
[null,null,null,null,null,null,null,null,{"$f":"H337","v":"2025-02-10"},null,null,null,null,null,null,null,null,null,null,null,null,null,null,null,null,null,null,null,null,null,null,null,null,null,null,null,null,null,null,null,null,null,{"$f":"I372+1","v":"2025-02-13"}]
[]
[]
[]
[]
[]
[]
[]
[]
[]
[]
[]
[]
[]
[]
[null,null,null,null,null,null,null,null,"Tue",null,null,null,null,null,null,null,null,null,null,null,null,null,null,null,null,null,null,null,null,null,null,null,null,null,null,null,null,null,null,null,null,null,"Fri"]
[null,null,null,null,null,null,null,null,{"$f":"I340+1","v":"2025-02-11"},null,null,null,null,null,null,null,null,null,null,null,null,null,null,null,null,null,null,null,null,null,null,null,null,null,null,null,null,null,null,null,null,null,{"$f":"AQ340+1","v":"2025-02-14"}]
[]
[]
[]
[]
[]
[]
[]
[]
[]
[]
[]
[]
[]
[]
[null,null,null,null,null,null,null,null,"Wed",null,null,null,null,null,null,null,null,null,null,null,null,null,null,null,null,null,null,null,null,null,null,null,null,null,null,null,null,null,null,null,null,null,"Sat"]
[null,null,null,null,null,null,null,null,{"$f":"I356+1","v":"2025-02-12"},null,null,null,null,null,null,null,null,null,null,null,null,null,null,null,null,null,null,null,null,null,null,null,null,null,null,null,null,null,null,null,null,null,{"$f":"AQ356+1","v":"2025-02-15"}]
[]
[]
[]
[]
[]
[]
[null,null,null,null,null,null,null,null,null,null,null,null,null,null,null,null,null,null,null,null,null,null,null,null,null,null,null,null,null,null,null,null,null,null,null,null,null,null,null,null,null,null,"Sun"]
[null,null,null,null,null,null,null,null,null,null,null,null,null,null,null,null,null,null,null,null,null,null,null,null,null,null,null,null,null,null,null,null,null,null,null,null,null,null,null,null,null,null,{"$f":"AQ372+1","v":"2025-02-16"}]
[]
[]
[]
[]
[]
[]
[null,null,"Notes:",null,null,null,null,null,null,null,null,null,null,null,null,null,null,null,null,null,null,null,null,null,null,null,null,null,null,null,null,null,null,null,null,null,"Notes:"]
[]
[]
[]
[]
[]
[null,null,{"$f":"\"Week of \"","v":"Week of "},null,null,null,null,"2025-02-17",null,null,null,null,null,null,null,null,null,null,null,null,null,null,null,null,null,null,null,null,null,null,null,null,null,null,"Week",null,{"$f":"\"Week of \"","v":"Week of "},null,null,null,null,{"$f":"H393","v":"2025-02-17"}]
[null,null,null,null,null,null,null,null,null,null,null,null,null,null,null,null,null,null,null,null,null,null,null,null,null,null,null,null,null,null,null,null,null,null,8]
[null,null,"TO DO",null,null,null,null,null,"Mon",null,null,null,null,null,null,null,null,null,null,null,null,null,null,null,null,null,null,null,null,null,null,null,null,null,null,null,"FORWARD",null,null,null,null,null,"Thu"]
[null,null,null,null,null,null,null,null,{"$f":"H393","v":"2025-02-17"},null,null,null,null,null,null,null,null,null,null,null,null,null,null,null,null,null,null,null,null,null,null,null,null,null,null,null,null,null,null,null,null,null,{"$f":"I428+1","v":"2025-02-20"}]
[]
[]
[]
[]
[]
[]
[]
[]
[]
[]
[]
[]
[]
[]
[null,null,null,null,null,null,null,null,"Tue",null,null,null,null,null,null,null,null,null,null,null,null,null,null,null,null,null,null,null,null,null,null,null,null,null,null,null,null,null,null,null,null,null,"Fri"]
[null,null,null,null,null,null,null,null,{"$f":"I396+1","v":"2025-02-18"},null,null,null,null,null,null,null,null,null,null,null,null,null,null,null,null,null,null,null,null,null,null,null,null,null,null,null,null,null,null,null,null,null,{"$f":"AQ396+1","v":"2025-02-21"}]
[]
[]
[]
[]
[]
[]
[]
[]
[]
[]
[]
[]
[]
[]
[null,null,null,null,null,null,null,null,"Wed",null,null,null,null,null,null,null,null,null,null,null,null,null,null,null,null,null,null,null,null,null,null,null,null,null,null,null,null,null,null,null,null,null,"Sat"]
[null,null,null,null,null,null,null,null,{"$f":"I412+1","v":"2025-02-19"},null,null,null,null,null,null,null,null,null,null,null,null,null,null,null,null,null,null,null,null,null,null,null,null,null,null,null,null,null,null,null,null,null,{"$f":"AQ412+1","v":"2025-02-22"}]
[]
[]
[]
[]
[]
[]
[null,null,null,null,null,null,null,null,null,null,null,null,null,null,null,null,null,null,null,null,null,null,null,null,null,null,null,null,null,null,null,null,null,null,null,null,null,null,null,null,null,null,"Sun"]
[null,null,null,null,null,null,null,null,null,null,null,null,null,null,null,null,null,null,null,null,null,null,null,null,null,null,null,null,null,null,null,null,null,null,null,null,null,null,null,null,null,null,{"$f":"AQ428+1","v":"2025-02-23"}]
[]
[]
[]
[]
[]
[]
[null,null,"Notes:",null,null,null,null,null,null,null,null,null,null,null,null,null,null,null,null,null,null,null,null,null,null,null,null,null,null,null,null,null,null,null,null,null,"Notes:"]
[]
[]
[]
[]
[]
[null,null,{"$f":"\"Week of \"","v":"Week of "},null,null,null,null,"2025-02-24",null,null,null,null,null,null,null,null,null,null,null,null,null,null,null,null,null,null,null,null,null,null,null,null,null,null,"Week",null,{"$f":"\"Week of \"","v":"Week of "},null,null,null,null,{"$f":"H449","v":"2025-02-24"}]
[null,null,null,null,null,null,null,null,null,null,null,null,null,null,null,null,null,null,null,null,null,null,null,null,null,null,null,null,null,null,null,null,null,null,9]
[null,null,"TO DO",null,null,null,null,null,"Mon",null,null,null,null,null,null,null,null,null,null,null,null,null,null,null,null,null,null,null,null,null,null,null,null,null,null,null,"FORWARD",null,null,null,null,null,"Thu"]
[null,null,null,null,null,null,null,null,{"$f":"H449","v":"2025-02-24"},null,null,null,null,null,null,null,null,null,null,null,null,null,null,null,null,null,null,null,null,null,null,null,null,null,null,null,null,null,null,null,null,null,{"$f":"I484+1","v":"2025-02-27"}]
[]
[]
[]
[]
[]
[]
[]
[]
[]
[]
[]
[]
[]
[]
[null,null,null,null,null,null,null,null,"Tue",null,null,null,null,null,null,null,null,null,null,null,null,null,null,null,null,null,null,null,null,null,null,null,null,null,null,null,null,null,null,null,null,null,"Fri"]
[null,null,null,null,null,null,null,null,{"$f":"I452+1","v":"2025-02-25"},null,null,null,null,null,null,null,null,null,null,null,null,null,null,null,null,null,null,null,null,null,null,null,null,null,null,null,null,null,null,null,null,null,{"$f":"AQ452+1","v":"2025-02-28"}]
[]
[]
[]
[]
[]
[]
[]
[]
[]
[]
[]
[]
[]
[]
[null,null,null,null,null,null,null,null,"Wed",null,null,null,null,null,null,null,null,null,null,null,null,null,null,null,null,null,null,null,null,null,null,null,null,null,null,null,null,null,null,null,null,null,"Sat"]
[null,null,null,null,null,null,null,null,{"$f":"I468+1","v":"2025-02-26"},null,null,null,null,null,null,null,null,null,null,null,null,null,null,null,null,null,null,null,null,null,null,null,null,null,null,null,null,null,null,null,null,null,{"$f":"AQ468+1","v":"2025-03-01"}]
[]
[]
[]
[]
[]
[]
[null,null,null,null,null,null,null,null,null,null,null,null,null,null,null,null,null,null,null,null,null,null,null,null,null,null,null,null,null,null,null,null,null,null,null,null,null,null,null,null,null,null,"Sun"]
[null,null,null,null,null,null,null,null,null,null,null,null,null,null,null,null,null,null,null,null,null,null,null,null,null,null,null,null,null,null,null,null,null,null,null,null,null,null,null,null,null,null,{"$f":"AQ484+1","v":"2025-03-02"}]
[]
[]
[]
[]
[]
[]
[null,null,"Notes:",null,null,null,null,null,null,null,null,null,null,null,null,null,null,null,null,null,null,null,null,null,null,null,null,null,null,null,null,null,null,null,null,null,"Notes:"]
[]
[]
[]
[]
[]
[null,null,{"$f":"\"Week of \"","v":"Week of "},null,null,null,null,"2025-03-03",null,null,null,null,null,null,null,null,null,null,null,null,null,null,null,null,null,null,null,null,null,null,null,null,null,null,"Week",null,{"$f":"\"Week of \"","v":"Week of "},null,null,null,null,{"$f":"H505","v":"2025-03-03"}]
[null,null,null,null,null,null,null,null,null,null,null,null,null,null,null,null,null,null,null,null,null,null,null,null,null,null,null,null,null,null,null,null,null,null,10]
[null,null,"TO DO",null,null,null,null,null,"Mon",null,null,null,null,null,null,null,null,null,null,null,null,null,null,null,null,null,null,null,null,null,null,null,null,null,null,null,"FORWARD",null,null,null,null,null,"Thu"]
[null,null,null,null,null,null,null,null,{"$f":"H505","v":"2025-03-03"},null,null,null,null,null,null,null,null,null,null,null,null,null,null,null,null,null,null,null,null,null,null,null,null,null,null,null,null,null,null,null,null,null,{"$f":"I540+1","v":"2025-03-06"}]
[]
[]
[]
[]
[]
[]
[]
[]
[]
[]
[]
[]
[]
[]
[null,null,null,null,null,null,null,null,"Tue",null,null,null,null,null,null,null,null,null,null,null,null,null,null,null,null,null,null,null,null,null,null,null,null,null,null,null,null,null,null,null,null,null,"Fri"]
[null,null,null,null,null,null,null,null,{"$f":"I508+1","v":"2025-03-04"},null,null,null,null,null,null,null,null,null,null,null,null,null,null,null,null,null,null,null,null,null,null,null,null,null,null,null,null,null,null,null,null,null,{"$f":"AQ508+1","v":"2025-03-07"}]
[]
[]
[]
[]
[]
[]
[]
[]
[]
[]
[]
[]
[]
[]
[null,null,null,null,null,null,null,null,"Wed",null,null,null,null,null,null,null,null,null,null,null,null,null,null,null,null,null,null,null,null,null,null,null,null,null,null,null,null,null,null,null,null,null,"Sat"]
[null,null,null,null,null,null,null,null,{"$f":"I524+1","v":"2025-03-05"},null,null,null,null,null,null,null,null,null,null,null,null,null,null,null,null,null,null,null,null,null,null,null,null,null,null,null,null,null,null,null,null,null,{"$f":"AQ524+1","v":"2025-03-08"}]
[]
[]
[]
[]
[]
[]
[null,null,null,null,null,null,null,null,null,null,null,null,null,null,null,null,null,null,null,null,null,null,null,null,null,null,null,null,null,null,null,null,null,null,null,null,null,null,null,null,null,null,"Sun"]
[null,null,null,null,null,null,null,null,null,null,null,null,null,null,null,null,null,null,null,null,null,null,null,null,null,null,null,null,null,null,null,null,null,null,null,null,null,null,null,null,null,null,{"$f":"AQ540+1","v":"2025-03-09"}]
[]
[]
[]
[]
[]
[]
[null,null,"Notes:",null,null,null,null,null,null,null,null,null,null,null,null,null,null,null,null,null,null,null,null,null,null,null,null,null,null,null,null,null,null,null,null,null,"Notes:"]
[]
[]
[]
[]
[]
[null,null,{"$f":"\"Week of \"","v":"Week of "},null,null,null,null,"2025-03-10",null,null,null,null,null,null,null,null,null,null,null,null,null,null,null,null,null,null,null,null,null,null,null,null,null,null,"Week",null,{"$f":"\"Week of \"","v":"Week of "},null,null,null,null,{"$f":"H561","v":"2025-03-10"}]
[null,null,null,null,null,null,null,null,null,null,null,null,null,null,null,null,null,null,null,null,null,null,null,null,null,null,null,null,null,null,null,null,null,null,11]
[null,null,"TO DO",null,null,null,null,null,"Mon",null,null,null,null,null,null,null,null,null,null,null,null,null,null,null,null,null,null,null,null,null,null,null,null,null,null,null,"FORWARD",null,null,null,null,null,"Thu"]
[null,null,null,null,null,null,null,null,{"$f":"H561","v":"2025-03-10"},null,null,null,null,null,null,null,null,null,null,null,null,null,null,null,null,null,null,null,null,null,null,null,null,null,null,null,null,null,null,null,null,null,{"$f":"I596+1","v":"2025-03-13"}]
[]
[]
[]
[]
[]
[]
[]
[]
[]
[]
[]
[]
[]
[]
[null,null,null,null,null,null,null,null,"Tue",null,null,null,null,null,null,null,null,null,null,null,null,null,null,null,null,null,null,null,null,null,null,null,null,null,null,null,null,null,null,null,null,null,"Fri"]
[null,null,null,null,null,null,null,null,{"$f":"I564+1","v":"2025-03-11"},null,null,null,null,null,null,null,null,null,null,null,null,null,null,null,null,null,null,null,null,null,null,null,null,null,null,null,null,null,null,null,null,null,{"$f":"AQ564+1","v":"2025-03-14"}]
[]
[]
[]
[]
[]
[]
[]
[]
[]
[]
[]
[]
[]
[]
[null,null,null,null,null,null,null,null,"Wed",null,null,null,null,null,null,null,null,null,null,null,null,null,null,null,null,null,null,null,null,null,null,null,null,null,null,null,null,null,null,null,null,null,"Sat"]
[null,null,null,null,null,null,null,null,{"$f":"I580+1","v":"2025-03-12"},null,null,null,null,null,null,null,null,null,null,null,null,null,null,null,null,null,null,null,null,null,null,null,null,null,null,null,null,null,null,null,null,null,{"$f":"AQ580+1","v":"2025-03-15"}]
[]
[]
[]
[]
[]
[]
[null,null,null,null,null,null,null,null,null,null,null,null,null,null,null,null,null,null,null,null,null,null,null,null,null,null,null,null,null,null,null,null,null,null,null,null,null,null,null,null,null,null,"Sun"]
[null,null,null,null,null,null,null,null,null,null,null,null,null,null,null,null,null,null,null,null,null,null,null,null,null,null,null,null,null,null,null,null,null,null,null,null,null,null,null,null,null,null,{"$f":"AQ596+1","v":"2025-03-16"}]
[]
[]
[]
[]
[]
[]
[null,null,"Notes:",null,null,null,null,null,null,null,null,null,null,null,null,null,null,null,null,null,null,null,null,null,null,null,null,null,null,null,null,null,null,null,null,null,"Notes:"]
[]
[]
[]
[]
[]
[null,null,{"$f":"\"Week of \"","v":"Week of "},null,null,null,null,"2025-03-17",null,null,null,null,null,null,null,null,null,null,null,null,null,null,null,null,null,null,null,null,null,null,null,null,null,null,"Week",null,{"$f":"\"Week of \"","v":"Week of "},null,null,null,null,{"$f":"H617","v":"2025-03-17"}]
[null,null,null,null,null,null,null,null,null,null,null,null,null,null,null,null,null,null,null,null,null,null,null,null,null,null,null,null,null,null,null,null,null,null,12]
[null,null,"TO DO",null,null,null,null,null,"Mon",null,null,null,null,null,null,null,null,null,null,null,null,null,null,null,null,null,null,null,null,null,null,null,null,null,null,null,"FORWARD",null,null,null,null,null,"Thu"]
[null,null,null,null,null,null,null,null,{"$f":"H617","v":"2025-03-17"},null,null,null,null,null,null,null,null,null,null,null,null,null,null,null,null,null,null,null,null,null,null,null,null,null,null,null,null,null,null,null,null,null,{"$f":"I652+1","v":"2025-03-20"}]
[]
[]
[]
[]
[]
[]
[]
[]
[]
[]
[]
[]
[]
[]
[null,null,null,null,null,null,null,null,"Tue",null,null,null,null,null,null,null,null,null,null,null,null,null,null,null,null,null,null,null,null,null,null,null,null,null,null,null,null,null,null,null,null,null,"Fri"]
[null,null,null,null,null,null,null,null,{"$f":"I620+1","v":"2025-03-18"},null,null,null,null,null,null,null,null,null,null,null,null,null,null,null,null,null,null,null,null,null,null,null,null,null,null,null,null,null,null,null,null,null,{"$f":"AQ620+1","v":"2025-03-21"}]
[]
[]
[]
[]
[]
[]
[]
[]
[]
[]
[]
[]
[]
[]
[null,null,null,null,null,null,null,null,"Wed",null,null,null,null,null,null,null,null,null,null,null,null,null,null,null,null,null,null,null,null,null,null,null,null,null,null,null,null,null,null,null,null,null,"Sat"]
[null,null,null,null,null,null,null,null,{"$f":"I636+1","v":"2025-03-19"},null,null,null,null,null,null,null,null,null,null,null,null,null,null,null,null,null,null,null,null,null,null,null,null,null,null,null,null,null,null,null,null,null,{"$f":"AQ636+1","v":"2025-03-22"}]
[]
[]
[]
[]
[]
[]
[null,null,null,null,null,null,null,null,null,null,null,null,null,null,null,null,null,null,null,null,null,null,null,null,null,null,null,null,null,null,null,null,null,null,null,null,null,null,null,null,null,null,"Sun"]
[null,null,null,null,null,null,null,null,null,null,null,null,null,null,null,null,null,null,null,null,null,null,null,null,null,null,null,null,null,null,null,null,null,null,null,null,null,null,null,null,null,null,{"$f":"AQ652+1","v":"2025-03-23"}]
[]
[]
[]
[]
[]
[]
[null,null,"Notes:",null,null,null,null,null,null,null,null,null,null,null,null,null,null,null,null,null,null,null,null,null,null,null,null,null,null,null,null,null,null,null,null,null,"Notes:"]
[]
[]
[]
[]
[]
[null,null,{"$f":"\"Week of \"","v":"Week of "},null,null,null,null,"2025-03-24",null,null,null,null,null,null,null,null,null,null,null,null,null,null,null,null,null,null,null,null,null,null,null,null,null,null,"Week",null,{"$f":"\"Week of \"","v":"Week of "},null,null,null,null,{"$f":"H673","v":"2025-03-24"}]
[null,null,null,null,null,null,null,null,null,null,null,null,null,null,null,null,null,null,null,null,null,null,null,null,null,null,null,null,null,null,null,null,null,null,13]
[null,null,"TO DO",null,null,null,null,null,"Mon",null,null,null,null,null,null,null,null,null,null,null,null,null,null,null,null,null,null,null,null,null,null,null,null,null,null,null,"FORWARD",null,null,null,null,null,"Thu"]
[null,null,null,null,null,null,null,null,{"$f":"H673","v":"2025-03-24"},null,null,null,null,null,null,null,null,null,null,null,null,null,null,null,null,null,null,null,null,null,null,null,null,null,null,null,null,null,null,null,null,null,{"$f":"I708+1","v":"2025-03-27"}]
[]
[]
[]
[]
[]
[]
[]
[]
[]
[]
[]
[]
[]
[]
[null,null,null,null,null,null,null,null,"Tue",null,null,null,null,null,null,null,null,null,null,null,null,null,null,null,null,null,null,null,null,null,null,null,null,null,null,null,null,null,null,null,null,null,"Fri"]
[null,null,null,null,null,null,null,null,{"$f":"I676+1","v":"2025-03-25"},null,null,null,null,null,null,null,null,null,null,null,null,null,null,null,null,null,null,null,null,null,null,null,null,null,null,null,null,null,null,null,null,null,{"$f":"AQ676+1","v":"2025-03-28"}]
[]
[]
[]
[]
[]
[]
[]
[]
[]
[]
[]
[]
[]
[]
[null,null,null,null,null,null,null,null,"Wed",null,null,null,null,null,null,null,null,null,null,null,null,null,null,null,null,null,null,null,null,null,null,null,null,null,null,null,null,null,null,null,null,null,"Sat"]
[null,null,null,null,null,null,null,null,{"$f":"I692+1","v":"2025-03-26"},null,null,null,null,null,null,null,null,null,null,null,null,null,null,null,null,null,null,null,null,null,null,null,null,null,null,null,null,null,null,null,null,null,{"$f":"AQ692+1","v":"2025-03-29"}]
[]
[]
[]
[]
[]
[]
[null,null,null,null,null,null,null,null,null,null,null,null,null,null,null,null,null,null,null,null,null,null,null,null,null,null,null,null,null,null,null,null,null,null,null,null,null,null,null,null,null,null,"Sun"]
[null,null,null,null,null,null,null,null,null,null,null,null,null,null,null,null,null,null,null,null,null,null,null,null,null,null,null,null,null,null,null,null,null,null,null,null,null,null,null,null,null,null,{"$f":"AQ708+1","v":"2025-03-30"}]
[]
[]
[]
[]
[]
[]
[null,null,"Notes:",null,null,null,null,null,null,null,null,null,null,null,null,null,null,null,null,null,null,null,null,null,null,null,null,null,null,null,null,null,null,null,null,null,"Notes:"]
[]
[]
[]
[]
[]
[null,null,{"$f":"\"Week of \"","v":"Week of "},null,null,null,null,"2025-03-31",null,null,null,null,null,null,null,null,null,null,null,null,null,null,null,null,null,null,null,null,null,null,null,null,null,null,"Week",null,{"$f":"\"Week of \"","v":"Week of "},null,null,null,null,{"$f":"H729","v":"2025-03-31"}]
[null,null,null,null,null,null,null,null,null,null,null,null,null,null,null,null,null,null,null,null,null,null,null,null,null,null,null,null,null,null,null,null,null,null,14]
[null,null,"TO DO",null,null,null,null,null,"Mon",null,null,null,null,null,null,null,null,null,null,null,null,null,null,null,null,null,null,null,null,null,null,null,null,null,null,null,"FORWARD",null,null,null,null,null,"Thu"]
[null,null,null,null,null,null,null,null,{"$f":"H729","v":"2025-03-31"},null,null,null,null,null,null,null,null,null,null,null,null,null,null,null,null,null,null,null,null,null,null,null,null,null,null,null,null,null,null,null,null,null,{"$f":"I764+1","v":"2025-04-03"}]
[]
[]
[]
[]
[]
[]
[]
[]
[]
[]
[]
[]
[]
[]
[null,null,null,null,null,null,null,null,"Tue",null,null,null,null,null,null,null,null,null,null,null,null,null,null,null,null,null,null,null,null,null,null,null,null,null,null,null,null,null,null,null,null,null,"Fri"]
[null,null,null,null,null,null,null,null,{"$f":"I732+1","v":"2025-04-01"},null,null,null,null,null,null,null,null,null,null,null,null,null,null,null,null,null,null,null,null,null,null,null,null,null,null,null,null,null,null,null,null,null,{"$f":"AQ732+1","v":"2025-04-04"}]
[]
[]
[]
[]
[]
[]
[]
[]
[]
[]
[]
[]
[]
[]
[null,null,null,null,null,null,null,null,"Wed",null,null,null,null,null,null,null,null,null,null,null,null,null,null,null,null,null,null,null,null,null,null,null,null,null,null,null,null,null,null,null,null,null,"Sat"]
[null,null,null,null,null,null,null,null,{"$f":"I748+1","v":"2025-04-02"},null,null,null,null,null,null,null,null,null,null,null,null,null,null,null,null,null,null,null,null,null,null,null,null,null,null,null,null,null,null,null,null,null,{"$f":"AQ748+1","v":"2025-04-05"}]
[]
[]
[]
[]
[]
[]
[null,null,null,null,null,null,null,null,null,null,null,null,null,null,null,null,null,null,null,null,null,null,null,null,null,null,null,null,null,null,null,null,null,null,null,null,null,null,null,null,null,null,"Sun"]
[null,null,null,null,null,null,null,null,null,null,null,null,null,null,null,null,null,null,null,null,null,null,null,null,null,null,null,null,null,null,null,null,null,null,null,null,null,null,null,null,null,null,{"$f":"AQ764+1","v":"2025-04-06"}]
[]
[]
[]
[]
[]
[]
[null,null,"Notes:",null,null,null,null,null,null,null,null,null,null,null,null,null,null,null,null,null,null,null,null,null,null,null,null,null,null,null,null,null,null,null,null,null,"Notes:"]
[]
[]
[]
[]
[]
[null,null,{"$f":"\"Week of \"","v":"Week of "},null,null,null,null,"2025-04-07",null,null,null,null,null,null,null,null,null,null,null,null,null,null,null,null,null,null,null,null,null,null,null,null,null,null,"Week",null,{"$f":"\"Week of \"","v":"Week of "},null,null,null,null,{"$f":"H785","v":"2025-04-07"}]
[null,null,null,null,null,null,null,null,null,null,null,null,null,null,null,null,null,null,null,null,null,null,null,null,null,null,null,null,null,null,null,null,null,null,15]
[null,null,"TO DO",null,null,null,null,null,"Mon",null,null,null,null,null,null,null,null,null,null,null,null,null,null,null,null,null,null,null,null,null,null,null,null,null,null,null,"FORWARD",null,null,null,null,null,"Thu"]
[null,null,null,null,null,null,null,null,{"$f":"H785","v":"2025-04-07"},null,null,null,null,null,null,null,null,null,null,null,null,null,null,null,null,null,null,null,null,null,null,null,null,null,null,null,null,null,null,null,null,null,{"$f":"I820+1","v":"2025-04-10"}]
[]
[]
[]
[]
[]
[]
[]
[]
[]
[]
[]
[]
[]
[]
[null,null,null,null,null,null,null,null,"Tue",null,null,null,null,null,null,null,null,null,null,null,null,null,null,null,null,null,null,null,null,null,null,null,null,null,null,null,null,null,null,null,null,null,"Fri"]
[null,null,null,null,null,null,null,null,{"$f":"I788+1","v":"2025-04-08"},null,null,null,null,null,null,null,null,null,null,null,null,null,null,null,null,null,null,null,null,null,null,null,null,null,null,null,null,null,null,null,null,null,{"$f":"AQ788+1","v":"2025-04-11"}]
[]
[]
[]
[]
[]
[]
[]
[]
[]
[]
[]
[]
[]
[]
[null,null,null,null,null,null,null,null,"Wed",null,null,null,null,null,null,null,null,null,null,null,null,null,null,null,null,null,null,null,null,null,null,null,null,null,null,null,null,null,null,null,null,null,"Sat"]
[null,null,null,null,null,null,null,null,{"$f":"I804+1","v":"2025-04-09"},null,null,null,null,null,null,null,null,null,null,null,null,null,null,null,null,null,null,null,null,null,null,null,null,null,null,null,null,null,null,null,null,null,{"$f":"AQ804+1","v":"2025-04-12"}]
[]
[]
[]
[]
[]
[]
[null,null,null,null,null,null,null,null,null,null,null,null,null,null,null,null,null,null,null,null,null,null,null,null,null,null,null,null,null,null,null,null,null,null,null,null,null,null,null,null,null,null,"Sun"]
[null,null,null,null,null,null,null,null,null,null,null,null,null,null,null,null,null,null,null,null,null,null,null,null,null,null,null,null,null,null,null,null,null,null,null,null,null,null,null,null,null,null,{"$f":"AQ820+1","v":"2025-04-13"}]
[]
[]
[]
[]
[]
[]
[null,null,"Notes:",null,null,null,null,null,null,null,null,null,null,null,null,null,null,null,null,null,null,null,null,null,null,null,null,null,null,null,null,null,null,null,null,null,"Notes:"]
[]
[]
[]
[]
[]
[null,null,{"$f":"\"Week of \"","v":"Week of "},null,null,null,null,"2025-04-14",null,null,null,null,null,null,null,null,null,null,null,null,null,null,null,null,null,null,null,null,null,null,null,null,null,null,"Week",null,{"$f":"\"Week of \"","v":"Week of "},null,null,null,null,{"$f":"H841","v":"2025-04-14"}]
[null,null,null,null,null,null,null,null,null,null,null,null,null,null,null,null,null,null,null,null,null,null,null,null,null,null,null,null,null,null,null,null,null,null,16]
[null,null,"TO DO",null,null,null,null,null,"Mon",null,null,null,null,null,null,null,null,null,null,null,null,null,null,null,null,null,null,null,null,null,null,null,null,null,null,null,"FORWARD",null,null,null,null,null,"Thu"]
[null,null,null,null,null,null,null,null,{"$f":"H841","v":"2025-04-14"},null,null,null,null,null,null,null,null,null,null,null,null,null,null,null,null,null,null,null,null,null,null,null,null,null,null,null,null,null,null,null,null,null,{"$f":"I876+1","v":"2025-04-17"}]
[]
[]
[]
[]
[]
[]
[]
[]
[]
[]
[]
[]
[]
[]
[null,null,null,null,null,null,null,null,"Tue",null,null,null,null,null,null,null,null,null,null,null,null,null,null,null,null,null,null,null,null,null,null,null,null,null,null,null,null,null,null,null,null,null,"Fri"]
[null,null,null,null,null,null,null,null,{"$f":"I844+1","v":"2025-04-15"},null,null,null,null,null,null,null,null,null,null,null,null,null,null,null,null,null,null,null,null,null,null,null,null,null,null,null,null,null,null,null,null,null,{"$f":"AQ844+1","v":"2025-04-18"}]
[]
[]
[]
[]
[]
[]
[]
[]
[]
[]
[]
[]
[]
[]
[null,null,null,null,null,null,null,null,"Wed",null,null,null,null,null,null,null,null,null,null,null,null,null,null,null,null,null,null,null,null,null,null,null,null,null,null,null,null,null,null,null,null,null,"Sat"]
[null,null,null,null,null,null,null,null,{"$f":"I860+1","v":"2025-04-16"},null,null,null,null,null,null,null,null,null,null,null,null,null,null,null,null,null,null,null,null,null,null,null,null,null,null,null,null,null,null,null,null,null,{"$f":"AQ860+1","v":"2025-04-19"}]
[]
[]
[]
[]
[]
[]
[null,null,null,null,null,null,null,null,null,null,null,null,null,null,null,null,null,null,null,null,null,null,null,null,null,null,null,null,null,null,null,null,null,null,null,null,null,null,null,null,null,null,"Sun"]
[null,null,null,null,null,null,null,null,null,null,null,null,null,null,null,null,null,null,null,null,null,null,null,null,null,null,null,null,null,null,null,null,null,null,null,null,null,null,null,null,null,null,{"$f":"AQ876+1","v":"2025-04-20"}]
[]
[]
[]
[]
[]
[]
[null,null,"Notes:",null,null,null,null,null,null,null,null,null,null,null,null,null,null,null,null,null,null,null,null,null,null,null,null,null,null,null,null,null,null,null,null,null,"Notes:"]
[]
[]
[]
[]
[]
[null,null,{"$f":"\"Week of \"","v":"Week of "},null,null,null,null,"2025-04-21",null,null,null,null,null,null,null,null,null,null,null,null,null,null,null,null,null,null,null,null,null,null,null,null,null,null,"Week",null,{"$f":"\"Week of \"","v":"Week of "},null,null,null,null,{"$f":"H897","v":"2025-04-21"}]
[null,null,null,null,null,null,null,null,null,null,null,null,null,null,null,null,null,null,null,null,null,null,null,null,null,null,null,null,null,null,null,null,null,null,17]
[null,null,"TO DO",null,null,null,null,null,"Mon",null,null,null,null,null,null,null,null,null,null,null,null,null,null,null,null,null,null,null,null,null,null,null,null,null,null,null,"FORWARD",null,null,null,null,null,"Thu"]
[null,null,null,null,null,null,null,null,{"$f":"H897","v":"2025-04-21"},null,null,null,null,null,null,null,null,null,null,null,null,null,null,null,null,null,null,null,null,null,null,null,null,null,null,null,null,null,null,null,null,null,{"$f":"I932+1","v":"2025-04-24"}]
[]
[]
[]
[]
[]
[]
[]
[]
[]
[]
[]
[]
[]
[]
[null,null,null,null,null,null,null,null,"Tue",null,null,null,null,null,null,null,null,null,null,null,null,null,null,null,null,null,null,null,null,null,null,null,null,null,null,null,null,null,null,null,null,null,"Fri"]
[null,null,null,null,null,null,null,null,{"$f":"I900+1","v":"2025-04-22"},null,null,null,null,null,null,null,null,null,null,null,null,null,null,null,null,null,null,null,null,null,null,null,null,null,null,null,null,null,null,null,null,null,{"$f":"AQ900+1","v":"2025-04-25"}]
[]
[]
[]
[]
[]
[]
[]
[]
[]
[]
[]
[]
[]
[]
[null,null,null,null,null,null,null,null,"Wed",null,null,null,null,null,null,null,null,null,null,null,null,null,null,null,null,null,null,null,null,null,null,null,null,null,null,null,null,null,null,null,null,null,"Sat"]
[null,null,null,null,null,null,null,null,{"$f":"I916+1","v":"2025-04-23"},null,null,null,null,null,null,null,null,null,null,null,null,null,null,null,null,null,null,null,null,null,null,null,null,null,null,null,null,null,null,null,null,null,{"$f":"AQ916+1","v":"2025-04-26"}]
[]
[]
[]
[]
[]
[]
[null,null,null,null,null,null,null,null,null,null,null,null,null,null,null,null,null,null,null,null,null,null,null,null,null,null,null,null,null,null,null,null,null,null,null,null,null,null,null,null,null,null,"Sun"]
[null,null,null,null,null,null,null,null,null,null,null,null,null,null,null,null,null,null,null,null,null,null,null,null,null,null,null,null,null,null,null,null,null,null,null,null,null,null,null,null,null,null,{"$f":"AQ932+1","v":"2025-04-27"}]
[]
[]
[]
[]
[]
[]
[null,null,"Notes:",null,null,null,null,null,null,null,null,null,null,null,null,null,null,null,null,null,null,null,null,null,null,null,null,null,null,null,null,null,null,null,null,null,"Notes:"]
[]
[]
[]
[]
[]
[null,null,{"$f":"\"Week of \"","v":"Week of "},null,null,null,null,"2025-04-28",null,null,null,null,null,null,null,null,null,null,null,null,null,null,null,null,null,null,null,null,null,null,null,null,null,null,"Week",null,{"$f":"\"Week of \"","v":"Week of "},null,null,null,null,{"$f":"H953","v":"2025-04-28"}]
[null,null,null,null,null,null,null,null,null,null,null,null,null,null,null,null,null,null,null,null,null,null,null,null,null,null,null,null,null,null,null,null,null,null,18]
[null,null,"TO DO",null,null,null,null,null,"Mon",null,null,null,null,null,null,null,null,null,null,null,null,null,null,null,null,null,null,null,null,null,null,null,null,null,null,null,"FORWARD",null,null,null,null,null,"Thu"]
[null,null,null,null,null,null,null,null,{"$f":"H953","v":"2025-04-28"},null,null,null,null,null,null,null,null,null,null,null,null,null,null,null,null,null,null,null,null,null,null,null,null,null,null,null,null,null,null,null,null,null,{"$f":"I988+1","v":"2025-05-01"}]
[]
[]
[]
[]
[]
[]
[]
[]
[]
[]
[]
[]
[]
[]
[null,null,null,null,null,null,null,null,"Tue",null,null,null,null,null,null,null,null,null,null,null,null,null,null,null,null,null,null,null,null,null,null,null,null,null,null,null,null,null,null,null,null,null,"Fri"]
[null,null,null,null,null,null,null,null,{"$f":"I956+1","v":"2025-04-29"},null,null,null,null,null,null,null,null,null,null,null,null,null,null,null,null,null,null,null,null,null,null,null,null,null,null,null,null,null,null,null,null,null,{"$f":"AQ956+1","v":"2025-05-02"}]
[]
[]
[]
[]
[]
[]
[]
[]
[]
[]
[]
[]
[]
[]
[null,null,null,null,null,null,null,null,"Wed",null,null,null,null,null,null,null,null,null,null,null,null,null,null,null,null,null,null,null,null,null,null,null,null,null,null,null,null,null,null,null,null,null,"Sat"]
[null,null,null,null,null,null,null,null,{"$f":"I972+1","v":"2025-04-30"},null,null,null,null,null,null,null,null,null,null,null,null,null,null,null,null,null,null,null,null,null,null,null,null,null,null,null,null,null,null,null,null,null,{"$f":"AQ972+1","v":"2025-05-03"}]
[]
[]
[]
[]
[]
[]
[null,null,null,null,null,null,null,null,null,null,null,null,null,null,null,null,null,null,null,null,null,null,null,null,null,null,null,null,null,null,null,null,null,null,null,null,null,null,null,null,null,null,"Sun"]
[null,null,null,null,null,null,null,null,null,null,null,null,null,null,null,null,null,null,null,null,null,null,null,null,null,null,null,null,null,null,null,null,null,null,null,null,null,null,null,null,null,null,{"$f":"AQ988+1","v":"2025-05-04"}]
[]
[]
[]
[]
[]
[]
[null,null,"Notes:",null,null,null,null,null,null,null,null,null,null,null,null,null,null,null,null,null,null,null,null,null,null,null,null,null,null,null,null,null,null,null,null,null,"Notes:"]
[]
[]
[]
[]
[]
[null,null,{"$f":"\"Week of \"","v":"Week of "},null,null,null,null,"2025-05-05",null,null,null,null,null,null,null,null,null,null,null,null,null,null,null,null,null,null,null,null,null,null,null,null,null,null,"Week",null,{"$f":"\"Week of \"","v":"Week of "},null,null,null,null,{"$f":"H1009","v":"2025-05-05"}]
[null,null,null,null,null,null,null,null,null,null,null,null,null,null,null,null,null,null,null,null,null,null,null,null,null,null,null,null,null,null,null,null,null,null,19]
[null,null,"TO DO",null,null,null,null,null,"Mon",null,null,null,null,null,null,null,null,null,null,null,null,null,null,null,null,null,null,null,null,null,null,null,null,null,null,null,"FORWARD",null,null,null,null,null,"Thu"]
[null,null,null,null,null,null,null,null,{"$f":"H1009","v":"2025-05-05"},null,null,null,null,null,null,null,null,null,null,null,null,null,null,null,null,null,null,null,null,null,null,null,null,null,null,null,null,null,null,null,null,null,{"$f":"I1044+1","v":"2025-05-08"}]
[]
[]
[]
[]
[]
[]
[]
[]
[]
[]
[]
[]
[]
[]
[null,null,null,null,null,null,null,null,"Tue",null,null,null,null,null,null,null,null,null,null,null,null,null,null,null,null,null,null,null,null,null,null,null,null,null,null,null,null,null,null,null,null,null,"Fri"]
[null,null,null,null,null,null,null,null,{"$f":"I1012+1","v":"2025-05-06"},null,null,null,null,null,null,null,null,null,null,null,null,null,null,null,null,null,null,null,null,null,null,null,null,null,null,null,null,null,null,null,null,null,{"$f":"AQ1012+1","v":"2025-05-09"}]
[]
[]
[]
[]
[]
[]
[]
[]
[]
[]
[]
[]
[]
[]
[null,null,null,null,null,null,null,null,"Wed",null,null,null,null,null,null,null,null,null,null,null,null,null,null,null,null,null,null,null,null,null,null,null,null,null,null,null,null,null,null,null,null,null,"Sat"]
[null,null,null,null,null,null,null,null,{"$f":"I1028+1","v":"2025-05-07"},null,null,null,null,null,null,null,null,null,null,null,null,null,null,null,null,null,null,null,null,null,null,null,null,null,null,null,null,null,null,null,null,null,{"$f":"AQ1028+1","v":"2025-05-10"}]
[]
[]
[]
[]
[]
[]
[null,null,null,null,null,null,null,null,null,null,null,null,null,null,null,null,null,null,null,null,null,null,null,null,null,null,null,null,null,null,null,null,null,null,null,null,null,null,null,null,null,null,"Sun"]
[null,null,null,null,null,null,null,null,null,null,null,null,null,null,null,null,null,null,null,null,null,null,null,null,null,null,null,null,null,null,null,null,null,null,null,null,null,null,null,null,null,null,{"$f":"AQ1044+1","v":"2025-05-11"}]
[]
[]
[]
[]
[]
[]
[null,null,"Notes:",null,null,null,null,null,null,null,null,null,null,null,null,null,null,null,null,null,null,null,null,null,null,null,null,null,null,null,null,null,null,null,null,null,"Notes:"]
[]
[]
[]
[]
[]
[null,null,{"$f":"\"Week of \"","v":"Week of "},null,null,null,null,"2025-05-12",null,null,null,null,null,null,null,null,null,null,null,null,null,null,null,null,null,null,null,null,null,null,null,null,null,null,"Week",null,{"$f":"\"Week of \"","v":"Week of "},null,null,null,null,{"$f":"H1065","v":"2025-05-12"}]
[null,null,null,null,null,null,null,null,null,null,null,null,null,null,null,null,null,null,null,null,null,null,null,null,null,null,null,null,null,null,null,null,null,null,20]
[null,null,"TO DO",null,null,null,null,null,"Mon",null,null,null,null,null,null,null,null,null,null,null,null,null,null,null,null,null,null,null,null,null,null,null,null,null,null,null,"FORWARD",null,null,null,null,null,"Thu"]
[null,null,null,null,null,null,null,null,{"$f":"H1065","v":"2025-05-12"},null,null,null,null,null,null,null,null,null,null,null,null,null,null,null,null,null,null,null,null,null,null,null,null,null,null,null,null,null,null,null,null,null,{"$f":"I1100+1","v":"2025-05-15"}]
[]
[]
[]
[]
[]
[]
[]
[]
[]
[]
[]
[]
[]
[]
[null,null,null,null,null,null,null,null,"Tue",null,null,null,null,null,null,null,null,null,null,null,null,null,null,null,null,null,null,null,null,null,null,null,null,null,null,null,null,null,null,null,null,null,"Fri"]
[null,null,null,null,null,null,null,null,{"$f":"I1068+1","v":"2025-05-13"},null,null,null,null,null,null,null,null,null,null,null,null,null,null,null,null,null,null,null,null,null,null,null,null,null,null,null,null,null,null,null,null,null,{"$f":"AQ1068+1","v":"2025-05-16"}]
[]
[]
[]
[]
[]
[]
[]
[]
[]
[]
[]
[]
[]
[]
[null,null,null,null,null,null,null,null,"Wed",null,null,null,null,null,null,null,null,null,null,null,null,null,null,null,null,null,null,null,null,null,null,null,null,null,null,null,null,null,null,null,null,null,"Sat"]
[null,null,null,null,null,null,null,null,{"$f":"I1084+1","v":"2025-05-14"},null,null,null,null,null,null,null,null,null,null,null,null,null,null,null,null,null,null,null,null,null,null,null,null,null,null,null,null,null,null,null,null,null,{"$f":"AQ1084+1","v":"2025-05-17"}]
[]
[]
[]
[]
[]
[]
[null,null,null,null,null,null,null,null,null,null,null,null,null,null,null,null,null,null,null,null,null,null,null,null,null,null,null,null,null,null,null,null,null,null,null,null,null,null,null,null,null,null,"Sun"]
[null,null,null,null,null,null,null,null,null,null,null,null,null,null,null,null,null,null,null,null,null,null,null,null,null,null,null,null,null,null,null,null,null,null,null,null,null,null,null,null,null,null,{"$f":"AQ1100+1","v":"2025-05-18"}]
[]
[]
[]
[]
[]
[]
[null,null,"Notes:",null,null,null,null,null,null,null,null,null,null,null,null,null,null,null,null,null,null,null,null,null,null,null,null,null,null,null,null,null,null,null,null,null,"Notes:"]
[]
[]
[]
[]
[]
[null,null,{"$f":"\"Week of \"","v":"Week of "},null,null,null,null,"2025-05-19",null,null,null,null,null,null,null,null,null,null,null,null,null,null,null,null,null,null,null,null,null,null,null,null,null,null,"Week",null,{"$f":"\"Week of \"","v":"Week of "},null,null,null,null,{"$f":"H1121","v":"2025-05-19"}]
[null,null,null,null,null,null,null,null,null,null,null,null,null,null,null,null,null,null,null,null,null,null,null,null,null,null,null,null,null,null,null,null,null,null,21]
[null,null,"TO DO",null,null,null,null,null,"Mon",null,null,null,null,null,null,null,null,null,null,null,null,null,null,null,null,null,null,null,null,null,null,null,null,null,null,null,"FORWARD",null,null,null,null,null,"Thu"]
[null,null,null,null,null,null,null,null,{"$f":"H1121","v":"2025-05-19"},null,null,null,null,null,null,null,null,null,null,null,null,null,null,null,null,null,null,null,null,null,null,null,null,null,null,null,null,null,null,null,null,null,{"$f":"I1156+1","v":"2025-05-22"}]
[]
[]
[]
[]
[]
[]
[]
[]
[]
[]
[]
[]
[]
[]
[null,null,null,null,null,null,null,null,"Tue",null,null,null,null,null,null,null,null,null,null,null,null,null,null,null,null,null,null,null,null,null,null,null,null,null,null,null,null,null,null,null,null,null,"Fri"]
[null,null,null,null,null,null,null,null,{"$f":"I1124+1","v":"2025-05-20"},null,null,null,null,null,null,null,null,null,null,null,null,null,null,null,null,null,null,null,null,null,null,null,null,null,null,null,null,null,null,null,null,null,{"$f":"AQ1124+1","v":"2025-05-23"}]
[]
[]
[]
[]
[]
[]
[]
[]
[]
[]
[]
[]
[]
[]
[null,null,null,null,null,null,null,null,"Wed",null,null,null,null,null,null,null,null,null,null,null,null,null,null,null,null,null,null,null,null,null,null,null,null,null,null,null,null,null,null,null,null,null,"Sat"]
[null,null,null,null,null,null,null,null,{"$f":"I1140+1","v":"2025-05-21"},null,null,null,null,null,null,null,null,null,null,null,null,null,null,null,null,null,null,null,null,null,null,null,null,null,null,null,null,null,null,null,null,null,{"$f":"AQ1140+1","v":"2025-05-24"}]
[]
[]
[]
[]
[]
[]
[null,null,null,null,null,null,null,null,null,null,null,null,null,null,null,null,null,null,null,null,null,null,null,null,null,null,null,null,null,null,null,null,null,null,null,null,null,null,null,null,null,null,"Sun"]
[null,null,null,null,null,null,null,null,null,null,null,null,null,null,null,null,null,null,null,null,null,null,null,null,null,null,null,null,null,null,null,null,null,null,null,null,null,null,null,null,null,null,{"$f":"AQ1156+1","v":"2025-05-25"}]
[]
[]
[]
[]
[]
[]
[null,null,"Notes:",null,null,null,null,null,null,null,null,null,null,null,null,null,null,null,null,null,null,null,null,null,null,null,null,null,null,null,null,null,null,null,null,null,"Notes:"]
[]
[]
[]
[]
[]
[null,null,{"$f":"\"Week of \"","v":"Week of "},null,null,null,null,"2025-05-26",null,null,null,null,null,null,null,null,null,null,null,null,null,null,null,null,null,null,null,null,null,null,null,null,null,null,"Week",null,{"$f":"\"Week of \"","v":"Week of "},null,null,null,null,{"$f":"H1177","v":"2025-05-26"}]
[null,null,null,null,null,null,null,null,null,null,null,null,null,null,null,null,null,null,null,null,null,null,null,null,null,null,null,null,null,null,null,null,null,null,22]
[null,null,"TO DO",null,null,null,null,null,"Mon",null,null,null,null,null,null,null,null,null,null,null,null,null,null,null,null,null,null,null,null,null,null,null,null,null,null,null,"FORWARD",null,null,null,null,null,"Thu"]
[null,null,null,null,null,null,null,null,{"$f":"H1177","v":"2025-05-26"},null,null,null,null,null,null,null,null,null,null,null,null,null,null,null,null,null,null,null,null,null,null,null,null,null,null,null,null,null,null,null,null,null,{"$f":"I1212+1","v":"2025-05-29"}]
[]
[]
[]
[]
[]
[]
[]
[]
[]
[]
[]
[]
[]
[]
[null,null,null,null,null,null,null,null,"Tue",null,null,null,null,null,null,null,null,null,null,null,null,null,null,null,null,null,null,null,null,null,null,null,null,null,null,null,null,null,null,null,null,null,"Fri"]
[null,null,null,null,null,null,null,null,{"$f":"I1180+1","v":"2025-05-27"},null,null,null,null,null,null,null,null,null,null,null,null,null,null,null,null,null,null,null,null,null,null,null,null,null,null,null,null,null,null,null,null,null,{"$f":"AQ1180+1","v":"2025-05-30"}]
[]
[]
[]
[]
[]
[]
[]
[]
[]
[]
[]
[]
[]
[]
[null,null,null,null,null,null,null,null,"Wed",null,null,null,null,null,null,null,null,null,null,null,null,null,null,null,null,null,null,null,null,null,null,null,null,null,null,null,null,null,null,null,null,null,"Sat"]
[null,null,null,null,null,null,null,null,{"$f":"I1196+1","v":"2025-05-28"},null,null,null,null,null,null,null,null,null,null,null,null,null,null,null,null,null,null,null,null,null,null,null,null,null,null,null,null,null,null,null,null,null,{"$f":"AQ1196+1","v":"2025-05-31"}]
[]
[]
[]
[]
[]
[]
[null,null,null,null,null,null,null,null,null,null,null,null,null,null,null,null,null,null,null,null,null,null,null,null,null,null,null,null,null,null,null,null,null,null,null,null,null,null,null,null,null,null,"Sun"]
[null,null,null,null,null,null,null,null,null,null,null,null,null,null,null,null,null,null,null,null,null,null,null,null,null,null,null,null,null,null,null,null,null,null,null,null,null,null,null,null,null,null,{"$f":"AQ1212+1","v":"2025-06-01"}]
[]
[]
[]
[]
[]
[]
[null,null,"Notes:",null,null,null,null,null,null,null,null,null,null,null,null,null,null,null,null,null,null,null,null,null,null,null,null,null,null,null,null,null,null,null,null,null,"Notes:"]
[]
[]
[]
[]
[]
[null,null,{"$f":"\"Week of \"","v":"Week of "},null,null,null,null,"2025-06-02",null,null,null,null,null,null,null,null,null,null,null,null,null,null,null,null,null,null,null,null,null,null,null,null,null,null,"Week",null,{"$f":"\"Week of \"","v":"Week of "},null,null,null,null,{"$f":"H1233","v":"2025-06-02"}]
[null,null,null,null,null,null,null,null,null,null,null,null,null,null,null,null,null,null,null,null,null,null,null,null,null,null,null,null,null,null,null,null,null,null,23]
[null,null,"TO DO",null,null,null,null,null,"Mon",null,null,null,null,null,null,null,null,null,null,null,null,null,null,null,null,null,null,null,null,null,null,null,null,null,null,null,"FORWARD",null,null,null,null,null,"Thu"]
[null,null,null,null,null,null,null,null,{"$f":"H1233","v":"2025-06-02"},null,null,null,null,null,null,null,null,null,null,null,null,null,null,null,null,null,null,null,null,null,null,null,null,null,null,null,null,null,null,null,null,null,{"$f":"I1268+1","v":"2025-06-05"}]
[]
[]
[]
[]
[]
[]
[]
[]
[]
[]
[]
[]
[]
[]
[null,null,null,null,null,null,null,null,"Tue",null,null,null,null,null,null,null,null,null,null,null,null,null,null,null,null,null,null,null,null,null,null,null,null,null,null,null,null,null,null,null,null,null,"Fri"]
[null,null,null,null,null,null,null,null,{"$f":"I1236+1","v":"2025-06-03"},null,null,null,null,null,null,null,null,null,null,null,null,null,null,null,null,null,null,null,null,null,null,null,null,null,null,null,null,null,null,null,null,null,{"$f":"AQ1236+1","v":"2025-06-06"}]
[]
[]
[]
[]
[]
[]
[]
[]
[]
[]
[]
[]
[]
[]
[null,null,null,null,null,null,null,null,"Wed",null,null,null,null,null,null,null,null,null,null,null,null,null,null,null,null,null,null,null,null,null,null,null,null,null,null,null,null,null,null,null,null,null,"Sat"]
[null,null,null,null,null,null,null,null,{"$f":"I1252+1","v":"2025-06-04"},null,null,null,null,null,null,null,null,null,null,null,null,null,null,null,null,null,null,null,null,null,null,null,null,null,null,null,null,null,null,null,null,null,{"$f":"AQ1252+1","v":"2025-06-07"}]
[]
[]
[]
[]
[]
[]
[null,null,null,null,null,null,null,null,null,null,null,null,null,null,null,null,null,null,null,null,null,null,null,null,null,null,null,null,null,null,null,null,null,null,null,null,null,null,null,null,null,null,"Sun"]
[null,null,null,null,null,null,null,null,null,null,null,null,null,null,null,null,null,null,null,null,null,null,null,null,null,null,null,null,null,null,null,null,null,null,null,null,null,null,null,null,null,null,{"$f":"AQ1268+1","v":"2025-06-08"}]
[]
[]
[]
[]
[]
[]
[null,null,"Notes:",null,null,null,null,null,null,null,null,null,null,null,null,null,null,null,null,null,null,null,null,null,null,null,null,null,null,null,null,null,null,null,null,null,"Notes:"]
[]
[]
[]
[]
[]
[null,null,{"$f":"\"Week of \"","v":"Week of "},null,null,null,null,"2025-06-09",null,null,null,null,null,null,null,null,null,null,null,null,null,null,null,null,null,null,null,null,null,null,null,null,null,null,"Week",null,{"$f":"\"Week of \"","v":"Week of "},null,null,null,null,{"$f":"H1289","v":"2025-06-09"}]
[null,null,null,null,null,null,null,null,null,null,null,null,null,null,null,null,null,null,null,null,null,null,null,null,null,null,null,null,null,null,null,null,null,null,24]
[null,null,"TO DO",null,null,null,null,null,"Mon",null,null,null,null,null,null,null,null,null,null,null,null,null,null,null,null,null,null,null,null,null,null,null,null,null,null,null,"FORWARD",null,null,null,null,null,"Thu"]
[null,null,null,null,null,null,null,null,{"$f":"H1289","v":"2025-06-09"},null,null,null,null,null,null,null,null,null,null,null,null,null,null,null,null,null,null,null,null,null,null,null,null,null,null,null,null,null,null,null,null,null,{"$f":"I1324+1","v":"2025-06-12"}]
[]
[]
[]
[]
[]
[]
[]
[]
[]
[]
[]
[]
[]
[]
[null,null,null,null,null,null,null,null,"Tue",null,null,null,null,null,null,null,null,null,null,null,null,null,null,null,null,null,null,null,null,null,null,null,null,null,null,null,null,null,null,null,null,null,"Fri"]
[null,null,null,null,null,null,null,null,{"$f":"I1292+1","v":"2025-06-10"},null,null,null,null,null,null,null,null,null,null,null,null,null,null,null,null,null,null,null,null,null,null,null,null,null,null,null,null,null,null,null,null,null,{"$f":"AQ1292+1","v":"2025-06-13"}]
[]
[]
[]
[]
[]
[]
[]
[]
[]
[]
[]
[]
[]
[]
[null,null,null,null,null,null,null,null,"Wed",null,null,null,null,null,null,null,null,null,null,null,null,null,null,null,null,null,null,null,null,null,null,null,null,null,null,null,null,null,null,null,null,null,"Sat"]
[null,null,null,null,null,null,null,null,{"$f":"I1308+1","v":"2025-06-11"},null,null,null,null,null,null,null,null,null,null,null,null,null,null,null,null,null,null,null,null,null,null,null,null,null,null,null,null,null,null,null,null,null,{"$f":"AQ1308+1","v":"2025-06-14"}]
[]
[]
[]
[]
[]
[]
[null,null,null,null,null,null,null,null,null,null,null,null,null,null,null,null,null,null,null,null,null,null,null,null,null,null,null,null,null,null,null,null,null,null,null,null,null,null,null,null,null,null,"Sun"]
[null,null,null,null,null,null,null,null,null,null,null,null,null,null,null,null,null,null,null,null,null,null,null,null,null,null,null,null,null,null,null,null,null,null,null,null,null,null,null,null,null,null,{"$f":"AQ1324+1","v":"2025-06-15"}]
[]
[]
[]
[]
[]
[]
[null,null,"Notes:",null,null,null,null,null,null,null,null,null,null,null,null,null,null,null,null,null,null,null,null,null,null,null,null,null,null,null,null,null,null,null,null,null,"Notes:"]
[]
[]
[]
[]
[]
[null,null,{"$f":"\"Week of \"","v":"Week of "},null,null,null,null,"2025-06-16",null,null,null,null,null,null,null,null,null,null,null,null,null,null,null,null,null,null,null,null,null,null,null,null,null,null,"Week",null,{"$f":"\"Week of \"","v":"Week of "},null,null,null,null,{"$f":"H1345","v":"2025-06-16"}]
[null,null,null,null,null,null,null,null,null,null,null,null,null,null,null,null,null,null,null,null,null,null,null,null,null,null,null,null,null,null,null,null,null,null,25]
[null,null,"TO DO",null,null,null,null,null,"Mon",null,null,null,null,null,null,null,null,null,null,null,null,null,null,null,null,null,null,null,null,null,null,null,null,null,null,null,"FORWARD",null,null,null,null,null,"Thu"]
[null,null,null,null,null,null,null,null,{"$f":"H1345","v":"2025-06-16"},null,null,null,null,null,null,null,null,null,null,null,null,null,null,null,null,null,null,null,null,null,null,null,null,null,null,null,null,null,null,null,null,null,{"$f":"I1380+1","v":"2025-06-19"}]
[]
[]
[]
[]
[]
[]
[]
[]
[]
[]
[]
[]
[]
[]
[null,null,null,null,null,null,null,null,"Tue",null,null,null,null,null,null,null,null,null,null,null,null,null,null,null,null,null,null,null,null,null,null,null,null,null,null,null,null,null,null,null,null,null,"Fri"]
[null,null,null,null,null,null,null,null,{"$f":"I1348+1","v":"2025-06-17"},null,null,null,null,null,null,null,null,null,null,null,null,null,null,null,null,null,null,null,null,null,null,null,null,null,null,null,null,null,null,null,null,null,{"$f":"AQ1348+1","v":"2025-06-20"}]
[]
[]
[]
[]
[]
[]
[]
[]
[]
[]
[]
[]
[]
[]
[null,null,null,null,null,null,null,null,"Wed",null,null,null,null,null,null,null,null,null,null,null,null,null,null,null,null,null,null,null,null,null,null,null,null,null,null,null,null,null,null,null,null,null,"Sat"]
[null,null,null,null,null,null,null,null,{"$f":"I1364+1","v":"2025-06-18"},null,null,null,null,null,null,null,null,null,null,null,null,null,null,null,null,null,null,null,null,null,null,null,null,null,null,null,null,null,null,null,null,null,{"$f":"AQ1364+1","v":"2025-06-21"}]
[]
[]
[]
[]
[]
[]
[null,null,null,null,null,null,null,null,null,null,null,null,null,null,null,null,null,null,null,null,null,null,null,null,null,null,null,null,null,null,null,null,null,null,null,null,null,null,null,null,null,null,"Sun"]
[null,null,null,null,null,null,null,null,null,null,null,null,null,null,null,null,null,null,null,null,null,null,null,null,null,null,null,null,null,null,null,null,null,null,null,null,null,null,null,null,null,null,{"$f":"AQ1380+1","v":"2025-06-22"}]
[]
[]
[]
[]
[]
[]
[null,null,"Notes:",null,null,null,null,null,null,null,null,null,null,null,null,null,null,null,null,null,null,null,null,null,null,null,null,null,null,null,null,null,null,null,null,null,"Notes:"]
[]
[]
[]
[]
[]
[null,null,{"$f":"\"Week of \"","v":"Week of "},null,null,null,null,"2025-06-23",null,null,null,null,null,null,null,null,null,null,null,null,null,null,null,null,null,null,null,null,null,null,null,null,null,null,"Week",null,{"$f":"\"Week of \"","v":"Week of "},null,null,null,null,{"$f":"H1401","v":"2025-06-23"}]
[null,null,null,null,null,null,null,null,null,null,null,null,null,null,null,null,null,null,null,null,null,null,null,null,null,null,null,null,null,null,null,null,null,null,26]
[null,null,"TO DO",null,null,null,null,null,"Mon",null,null,null,null,null,null,null,null,null,null,null,null,null,null,null,null,null,null,null,null,null,null,null,null,null,null,null,"FORWARD",null,null,null,null,null,"Thu"]
[null,null,null,null,null,null,null,null,{"$f":"H1401","v":"2025-06-23"},null,null,null,null,null,null,null,null,null,null,null,null,null,null,null,null,null,null,null,null,null,null,null,null,null,null,null,null,null,null,null,null,null,{"$f":"I1436+1","v":"2025-06-26"}]
[]
[]
[]
[]
[]
[]
[]
[]
[]
[]
[]
[]
[]
[]
[null,null,null,null,null,null,null,null,"Tue",null,null,null,null,null,null,null,null,null,null,null,null,null,null,null,null,null,null,null,null,null,null,null,null,null,null,null,null,null,null,null,null,null,"Fri"]
[null,null,null,null,null,null,null,null,{"$f":"I1404+1","v":"2025-06-24"},null,null,null,null,null,null,null,null,null,null,null,null,null,null,null,null,null,null,null,null,null,null,null,null,null,null,null,null,null,null,null,null,null,{"$f":"AQ1404+1","v":"2025-06-27"}]
[]
[]
[]
[]
[]
[]
[]
[]
[]
[]
[]
[]
[]
[]
[null,null,null,null,null,null,null,null,"Wed",null,null,null,null,null,null,null,null,null,null,null,null,null,null,null,null,null,null,null,null,null,null,null,null,null,null,null,null,null,null,null,null,null,"Sat"]
[null,null,null,null,null,null,null,null,{"$f":"I1420+1","v":"2025-06-25"},null,null,null,null,null,null,null,null,null,null,null,null,null,null,null,null,null,null,null,null,null,null,null,null,null,null,null,null,null,null,null,null,null,{"$f":"AQ1420+1","v":"2025-06-28"}]
[]
[]
[]
[]
[]
[]
[null,null,null,null,null,null,null,null,null,null,null,null,null,null,null,null,null,null,null,null,null,null,null,null,null,null,null,null,null,null,null,null,null,null,null,null,null,null,null,null,null,null,"Sun"]
[null,null,null,null,null,null,null,null,null,null,null,null,null,null,null,null,null,null,null,null,null,null,null,null,null,null,null,null,null,null,null,null,null,null,null,null,null,null,null,null,null,null,{"$f":"AQ1436+1","v":"2025-06-29"}]
[]
[]
[]
[]
[]
[]
[null,null,"Notes:",null,null,null,null,null,null,null,null,null,null,null,null,null,null,null,null,null,null,null,null,null,null,null,null,null,null,null,null,null,null,null,null,null,"Notes:"]
[]
[]
[]
[]
[]
[null,null,{"$f":"\"Week of \"","v":"Week of "},null,null,null,null,"2025-06-30",null,null,null,null,null,null,null,null,null,null,null,null,null,null,null,null,null,null,null,null,null,null,null,null,null,null,"Week",null,{"$f":"\"Week of \"","v":"Week of "},null,null,null,null,{"$f":"H1457","v":"2025-06-30"}]
[null,null,null,null,null,null,null,null,null,null,null,null,null,null,null,null,null,null,null,null,null,null,null,null,null,null,null,null,null,null,null,null,null,null,27]
[null,null,"TO DO",null,null,null,null,null,"Mon",null,null,null,null,null,null,null,null,null,null,null,null,null,null,null,null,null,null,null,null,null,null,null,null,null,null,null,"FORWARD",null,null,null,null,null,"Thu"]
[null,null,null,null,null,null,null,null,{"$f":"H1457","v":"2025-06-30"},null,null,null,null,null,null,null,null,null,null,null,null,null,null,null,null,null,null,null,null,null,null,null,null,null,null,null,null,null,null,null,null,null,{"$f":"I1492+1","v":"2025-07-03"}]
[]
[]
[]
[]
[]
[]
[]
[]
[]
[]
[]
[]
[]
[]
[null,null,null,null,null,null,null,null,"Tue",null,null,null,null,null,null,null,null,null,null,null,null,null,null,null,null,null,null,null,null,null,null,null,null,null,null,null,null,null,null,null,null,null,"Fri"]
[null,null,null,null,null,null,null,null,{"$f":"I1460+1","v":"2025-07-01"},null,null,null,null,null,null,null,null,null,null,null,null,null,null,null,null,null,null,null,null,null,null,null,null,null,null,null,null,null,null,null,null,null,{"$f":"AQ1460+1","v":"2025-07-04"}]
[]
[]
[]
[]
[]
[]
[]
[]
[]
[]
[]
[]
[]
[]
[null,null,null,null,null,null,null,null,"Wed",null,null,null,null,null,null,null,null,null,null,null,null,null,null,null,null,null,null,null,null,null,null,null,null,null,null,null,null,null,null,null,null,null,"Sat"]
[null,null,null,null,null,null,null,null,{"$f":"I1476+1","v":"2025-07-02"},null,null,null,null,null,null,null,null,null,null,null,null,null,null,null,null,null,null,null,null,null,null,null,null,null,null,null,null,null,null,null,null,null,{"$f":"AQ1476+1","v":"2025-07-05"}]
[]
[]
[]
[]
[]
[]
[null,null,null,null,null,null,null,null,null,null,null,null,null,null,null,null,null,null,null,null,null,null,null,null,null,null,null,null,null,null,null,null,null,null,null,null,null,null,null,null,null,null,"Sun"]
[null,null,null,null,null,null,null,null,null,null,null,null,null,null,null,null,null,null,null,null,null,null,null,null,null,null,null,null,null,null,null,null,null,null,null,null,null,null,null,null,null,null,{"$f":"AQ1492+1","v":"2025-07-06"}]
[]
[]
[]
[]
[]
[]
[null,null,"Notes:",null,null,null,null,null,null,null,null,null,null,null,null,null,null,null,null,null,null,null,null,null,null,null,null,null,null,null,null,null,null,null,null,null,"Notes:"]
[]
[]
[]
[]
[]
[null,null,{"$f":"\"Week of \"","v":"Week of "},null,null,null,null,"2025-07-07",null,null,null,null,null,null,null,null,null,null,null,null,null,null,null,null,null,null,null,null,null,null,null,null,null,null,"Week",null,{"$f":"\"Week of \"","v":"Week of "},null,null,null,null,{"$f":"H1513","v":"2025-07-07"}]
[null,null,null,null,null,null,null,null,null,null,null,null,null,null,null,null,null,null,null,null,null,null,null,null,null,null,null,null,null,null,null,null,null,null,28]
[null,null,"TO DO",null,null,null,null,null,"Mon",null,null,null,null,null,null,null,null,null,null,null,null,null,null,null,null,null,null,null,null,null,null,null,null,null,null,null,"FORWARD",null,null,null,null,null,"Thu"]
[null,null,null,null,null,null,null,null,{"$f":"H1513","v":"2025-07-07"},null,null,null,null,null,null,null,null,null,null,null,null,null,null,null,null,null,null,null,null,null,null,null,null,null,null,null,null,null,null,null,null,null,{"$f":"I1548+1","v":"2025-07-10"}]
[]
[]
[]
[]
[]
[]
[]
[]
[]
[]
[]
[]
[]
[]
[null,null,null,null,null,null,null,null,"Tue",null,null,null,null,null,null,null,null,null,null,null,null,null,null,null,null,null,null,null,null,null,null,null,null,null,null,null,null,null,null,null,null,null,"Fri"]
[null,null,null,null,null,null,null,null,{"$f":"I1516+1","v":"2025-07-08"},null,null,null,null,null,null,null,null,null,null,null,null,null,null,null,null,null,null,null,null,null,null,null,null,null,null,null,null,null,null,null,null,null,{"$f":"AQ1516+1","v":"2025-07-11"}]
[]
[]
[]
[]
[]
[]
[]
[]
[]
[]
[]
[]
[]
[]
[null,null,null,null,null,null,null,null,"Wed",null,null,null,null,null,null,null,null,null,null,null,null,null,null,null,null,null,null,null,null,null,null,null,null,null,null,null,null,null,null,null,null,null,"Sat"]
[null,null,null,null,null,null,null,null,{"$f":"I1532+1","v":"2025-07-09"},null,null,null,null,null,null,null,null,null,null,null,null,null,null,null,null,null,null,null,null,null,null,null,null,null,null,null,null,null,null,null,null,null,{"$f":"AQ1532+1","v":"2025-07-12"}]
[]
[]
[]
[]
[]
[]
[null,null,null,null,null,null,null,null,null,null,null,null,null,null,null,null,null,null,null,null,null,null,null,null,null,null,null,null,null,null,null,null,null,null,null,null,null,null,null,null,null,null,"Sun"]
[null,null,null,null,null,null,null,null,null,null,null,null,null,null,null,null,null,null,null,null,null,null,null,null,null,null,null,null,null,null,null,null,null,null,null,null,null,null,null,null,null,null,{"$f":"AQ1548+1","v":"2025-07-13"}]
[]
[]
[]
[]
[]
[]
[null,null,"Notes:",null,null,null,null,null,null,null,null,null,null,null,null,null,null,null,null,null,null,null,null,null,null,null,null,null,null,null,null,null,null,null,null,null,"Notes:"]
[]
[]
[]
[]
[]
[null,null,{"$f":"\"Week of \"","v":"Week of "},null,null,null,null,"2025-07-14",null,null,null,null,null,null,null,null,null,null,null,null,null,null,null,null,null,null,null,null,null,null,null,null,null,null,"Week",null,{"$f":"\"Week of \"","v":"Week of "},null,null,null,null,{"$f":"H1569","v":"2025-07-14"}]
[null,null,null,null,null,null,null,null,null,null,null,null,null,null,null,null,null,null,null,null,null,null,null,null,null,null,null,null,null,null,null,null,null,null,29]
[null,null,"TO DO",null,null,null,null,null,"Mon",null,null,null,null,null,null,null,null,null,null,null,null,null,null,null,null,null,null,null,null,null,null,null,null,null,null,null,"FORWARD",null,null,null,null,null,"Thu"]
[null,null,null,null,null,null,null,null,{"$f":"H1569","v":"2025-07-14"},null,null,null,null,null,null,null,null,null,null,null,null,null,null,null,null,null,null,null,null,null,null,null,null,null,null,null,null,null,null,null,null,null,{"$f":"I1604+1","v":"2025-07-17"}]
[]
[]
[]
[]
[]
[]
[]
[]
[]
[]
[]
[]
[]
[]
[null,null,null,null,null,null,null,null,"Tue",null,null,null,null,null,null,null,null,null,null,null,null,null,null,null,null,null,null,null,null,null,null,null,null,null,null,null,null,null,null,null,null,null,"Fri"]
[null,null,null,null,null,null,null,null,{"$f":"I1572+1","v":"2025-07-15"},null,null,null,null,null,null,null,null,null,null,null,null,null,null,null,null,null,null,null,null,null,null,null,null,null,null,null,null,null,null,null,null,null,{"$f":"AQ1572+1","v":"2025-07-18"}]
[]
[]
[]
[]
[]
[]
[]
[]
[]
[]
[]
[]
[]
[]
[null,null,null,null,null,null,null,null,"Wed",null,null,null,null,null,null,null,null,null,null,null,null,null,null,null,null,null,null,null,null,null,null,null,null,null,null,null,null,null,null,null,null,null,"Sat"]
[null,null,null,null,null,null,null,null,{"$f":"I1588+1","v":"2025-07-16"},null,null,null,null,null,null,null,null,null,null,null,null,null,null,null,null,null,null,null,null,null,null,null,null,null,null,null,null,null,null,null,null,null,{"$f":"AQ1588+1","v":"2025-07-19"}]
[]
[]
[]
[]
[]
[]
[null,null,null,null,null,null,null,null,null,null,null,null,null,null,null,null,null,null,null,null,null,null,null,null,null,null,null,null,null,null,null,null,null,null,null,null,null,null,null,null,null,null,"Sun"]
[null,null,null,null,null,null,null,null,null,null,null,null,null,null,null,null,null,null,null,null,null,null,null,null,null,null,null,null,null,null,null,null,null,null,null,null,null,null,null,null,null,null,{"$f":"AQ1604+1","v":"2025-07-20"}]
[]
[]
[]
[]
[]
[]
[null,null,"Notes:",null,null,null,null,null,null,null,null,null,null,null,null,null,null,null,null,null,null,null,null,null,null,null,null,null,null,null,null,null,null,null,null,null,"Notes:"]
[]
[]
[]
[]
[]
[null,null,{"$f":"\"Week of \"","v":"Week of "},null,null,null,null,"2025-07-21",null,null,null,null,null,null,null,null,null,null,null,null,null,null,null,null,null,null,null,null,null,null,null,null,null,null,"Week",null,{"$f":"\"Week of \"","v":"Week of "},null,null,null,null,{"$f":"H1625","v":"2025-07-21"}]
[null,null,null,null,null,null,null,null,null,null,null,null,null,null,null,null,null,null,null,null,null,null,null,null,null,null,null,null,null,null,null,null,null,null,30]
[null,null,"TO DO",null,null,null,null,null,"Mon",null,null,null,null,null,null,null,null,null,null,null,null,null,null,null,null,null,null,null,null,null,null,null,null,null,null,null,"FORWARD",null,null,null,null,null,"Thu"]
[null,null,null,null,null,null,null,null,{"$f":"H1625","v":"2025-07-21"},null,null,null,null,null,null,null,null,null,null,null,null,null,null,null,null,null,null,null,null,null,null,null,null,null,null,null,null,null,null,null,null,null,{"$f":"I1660+1","v":"2025-07-24"}]
[]
[]
[]
[]
[]
[]
[]
[]
[]
[]
[]
[]
[]
[]
[null,null,null,null,null,null,null,null,"Tue",null,null,null,null,null,null,null,null,null,null,null,null,null,null,null,null,null,null,null,null,null,null,null,null,null,null,null,null,null,null,null,null,null,"Fri"]
[null,null,null,null,null,null,null,null,{"$f":"I1628+1","v":"2025-07-22"},null,null,null,null,null,null,null,null,null,null,null,null,null,null,null,null,null,null,null,null,null,null,null,null,null,null,null,null,null,null,null,null,null,{"$f":"AQ1628+1","v":"2025-07-25"}]
[]
[]
[]
[]
[]
[]
[]
[]
[]
[]
[]
[]
[]
[]
[null,null,null,null,null,null,null,null,"Wed",null,null,null,null,null,null,null,null,null,null,null,null,null,null,null,null,null,null,null,null,null,null,null,null,null,null,null,null,null,null,null,null,null,"Sat"]
[null,null,null,null,null,null,null,null,{"$f":"I1644+1","v":"2025-07-23"},null,null,null,null,null,null,null,null,null,null,null,null,null,null,null,null,null,null,null,null,null,null,null,null,null,null,null,null,null,null,null,null,null,{"$f":"AQ1644+1","v":"2025-07-26"}]
[]
[]
[]
[]
[]
[]
[null,null,null,null,null,null,null,null,null,null,null,null,null,null,null,null,null,null,null,null,null,null,null,null,null,null,null,null,null,null,null,null,null,null,null,null,null,null,null,null,null,null,"Sun"]
[null,null,null,null,null,null,null,null,null,null,null,null,null,null,null,null,null,null,null,null,null,null,null,null,null,null,null,null,null,null,null,null,null,null,null,null,null,null,null,null,null,null,{"$f":"AQ1660+1","v":"2025-07-27"}]
[]
[]
[]
[]
[]
[]
[null,null,"Notes:",null,null,null,null,null,null,null,null,null,null,null,null,null,null,null,null,null,null,null,null,null,null,null,null,null,null,null,null,null,null,null,null,null,"Notes:"]
[]
[]
[]
[]
[]
[null,null,{"$f":"\"Week of \"","v":"Week of "},null,null,null,null,"2025-07-28",null,null,null,null,null,null,null,null,null,null,null,null,null,null,null,null,null,null,null,null,null,null,null,null,null,null,"Week",null,{"$f":"\"Week of \"","v":"Week of "},null,null,null,null,{"$f":"H1681","v":"2025-07-28"}]
[null,null,null,null,null,null,null,null,null,null,null,null,null,null,null,null,null,null,null,null,null,null,null,null,null,null,null,null,null,null,null,null,null,null,31]
[null,null,"TO DO",null,null,null,null,null,"Mon",null,null,null,null,null,null,null,null,null,null,null,null,null,null,null,null,null,null,null,null,null,null,null,null,null,null,null,"FORWARD",null,null,null,null,null,"Thu"]
[null,null,null,null,null,null,null,null,{"$f":"H1681","v":"2025-07-28"},null,null,null,null,null,null,null,null,null,null,null,null,null,null,null,null,null,null,null,null,null,null,null,null,null,null,null,null,null,null,null,null,null,{"$f":"I1716+1","v":"2025-07-31"}]
[]
[]
[]
[]
[]
[]
[]
[]
[]
[]
[]
[]
[]
[]
[null,null,null,null,null,null,null,null,"Tue",null,null,null,null,null,null,null,null,null,null,null,null,null,null,null,null,null,null,null,null,null,null,null,null,null,null,null,null,null,null,null,null,null,"Fri"]
[null,null,null,null,null,null,null,null,{"$f":"I1684+1","v":"2025-07-29"},null,null,null,null,null,null,null,null,null,null,null,null,null,null,null,null,null,null,null,null,null,null,null,null,null,null,null,null,null,null,null,null,null,{"$f":"AQ1684+1","v":"2025-08-01"}]
[]
[]
[]
[]
[]
[]
[]
[]
[]
[]
[]
[]
[]
[]
[null,null,null,null,null,null,null,null,"Wed",null,null,null,null,null,null,null,null,null,null,null,null,null,null,null,null,null,null,null,null,null,null,null,null,null,null,null,null,null,null,null,null,null,"Sat"]
[null,null,null,null,null,null,null,null,{"$f":"I1700+1","v":"2025-07-30"},null,null,null,null,null,null,null,null,null,null,null,null,null,null,null,null,null,null,null,null,null,null,null,null,null,null,null,null,null,null,null,null,null,{"$f":"AQ1700+1","v":"2025-08-02"}]
[]
[]
[]
[]
[]
[]
[null,null,null,null,null,null,null,null,null,null,null,null,null,null,null,null,null,null,null,null,null,null,null,null,null,null,null,null,null,null,null,null,null,null,null,null,null,null,null,null,null,null,"Sun"]
[null,null,null,null,null,null,null,null,null,null,null,null,null,null,null,null,null,null,null,null,null,null,null,null,null,null,null,null,null,null,null,null,null,null,null,null,null,null,null,null,null,null,{"$f":"AQ1716+1","v":"2025-08-03"}]
[]
[]
[]
[]
[]
[]
[null,null,"Notes:",null,null,null,null,null,null,null,null,null,null,null,null,null,null,null,null,null,null,null,null,null,null,null,null,null,null,null,null,null,null,null,null,null,"Notes:"]
[]
[]
[]
[]
[]
[null,null,{"$f":"\"Week of \"","v":"Week of "},null,null,null,null,"2025-08-04",null,null,null,null,null,null,null,null,null,null,null,null,null,null,null,null,null,null,null,null,null,null,null,null,null,null,"Week",null,{"$f":"\"Week of \"","v":"Week of "},null,null,null,null,{"$f":"H1737","v":"2025-08-04"}]
[null,null,null,null,null,null,null,null,null,null,null,null,null,null,null,null,null,null,null,null,null,null,null,null,null,null,null,null,null,null,null,null,null,null,32]
[null,null,"TO DO",null,null,null,null,null,"Mon",null,null,null,null,null,null,null,null,null,null,null,null,null,null,null,null,null,null,null,null,null,null,null,null,null,null,null,"FORWARD",null,null,null,null,null,"Thu"]
[null,null,null,null,null,null,null,null,{"$f":"H1737","v":"2025-08-04"},null,null,null,null,null,null,null,null,null,null,null,null,null,null,null,null,null,null,null,null,null,null,null,null,null,null,null,null,null,null,null,null,null,{"$f":"I1772+1","v":"2025-08-07"}]
[]
[]
[]
[]
[]
[]
[]
[]
[]
[]
[]
[]
[]
[]
[null,null,null,null,null,null,null,null,"Tue",null,null,null,null,null,null,null,null,null,null,null,null,null,null,null,null,null,null,null,null,null,null,null,null,null,null,null,null,null,null,null,null,null,"Fri"]
[null,null,null,null,null,null,null,null,{"$f":"I1740+1","v":"2025-08-05"},null,null,null,null,null,null,null,null,null,null,null,null,null,null,null,null,null,null,null,null,null,null,null,null,null,null,null,null,null,null,null,null,null,{"$f":"AQ1740+1","v":"2025-08-08"}]
[]
[]
[]
[]
[]
[]
[]
[]
[]
[]
[]
[]
[]
[]
[null,null,null,null,null,null,null,null,"Wed",null,null,null,null,null,null,null,null,null,null,null,null,null,null,null,null,null,null,null,null,null,null,null,null,null,null,null,null,null,null,null,null,null,"Sat"]
[null,null,null,null,null,null,null,null,{"$f":"I1756+1","v":"2025-08-06"},null,null,null,null,null,null,null,null,null,null,null,null,null,null,null,null,null,null,null,null,null,null,null,null,null,null,null,null,null,null,null,null,null,{"$f":"AQ1756+1","v":"2025-08-09"}]
[]
[]
[]
[]
[]
[]
[null,null,null,null,null,null,null,null,null,null,null,null,null,null,null,null,null,null,null,null,null,null,null,null,null,null,null,null,null,null,null,null,null,null,null,null,null,null,null,null,null,null,"Sun"]
[null,null,null,null,null,null,null,null,null,null,null,null,null,null,null,null,null,null,null,null,null,null,null,null,null,null,null,null,null,null,null,null,null,null,null,null,null,null,null,null,null,null,{"$f":"AQ1772+1","v":"2025-08-10"}]
[]
[]
[]
[]
[]
[]
[null,null,"Notes:",null,null,null,null,null,null,null,null,null,null,null,null,null,null,null,null,null,null,null,null,null,null,null,null,null,null,null,null,null,null,null,null,null,"Notes:"]
[]
[]
[]
[]
[]
[null,null,{"$f":"\"Week of \"","v":"Week of "},null,null,null,null,"2025-08-11",null,null,null,null,null,null,null,null,null,null,null,null,null,null,null,null,null,null,null,null,null,null,null,null,null,null,"Week",null,{"$f":"\"Week of \"","v":"Week of "},null,null,null,null,{"$f":"H1793","v":"2025-08-11"}]
[null,null,null,null,null,null,null,null,null,null,null,null,null,null,null,null,null,null,null,null,null,null,null,null,null,null,null,null,null,null,null,null,null,null,33]
[null,null,"TO DO",null,null,null,null,null,"Mon",null,null,null,null,null,null,null,null,null,null,null,null,null,null,null,null,null,null,null,null,null,null,null,null,null,null,null,"FORWARD",null,null,null,null,null,"Thu"]
[null,null,null,null,null,null,null,null,{"$f":"H1793","v":"2025-08-11"},null,null,null,null,null,null,null,null,null,null,null,null,null,null,null,null,null,null,null,null,null,null,null,null,null,null,null,null,null,null,null,null,null,{"$f":"I1828+1","v":"2025-08-14"}]
[]
[]
[]
[]
[]
[]
[]
[]
[]
[]
[]
[]
[]
[]
[null,null,null,null,null,null,null,null,"Tue",null,null,null,null,null,null,null,null,null,null,null,null,null,null,null,null,null,null,null,null,null,null,null,null,null,null,null,null,null,null,null,null,null,"Fri"]
[null,null,null,null,null,null,null,null,{"$f":"I1796+1","v":"2025-08-12"},null,null,null,null,null,null,null,null,null,null,null,null,null,null,null,null,null,null,null,null,null,null,null,null,null,null,null,null,null,null,null,null,null,{"$f":"AQ1796+1","v":"2025-08-15"}]
[]
[]
[]
[]
[]
[]
[]
[]
[]
[]
[]
[]
[]
[]
[null,null,null,null,null,null,null,null,"Wed",null,null,null,null,null,null,null,null,null,null,null,null,null,null,null,null,null,null,null,null,null,null,null,null,null,null,null,null,null,null,null,null,null,"Sat"]
[null,null,null,null,null,null,null,null,{"$f":"I1812+1","v":"2025-08-13"},null,null,null,null,null,null,null,null,null,null,null,null,null,null,null,null,null,null,null,null,null,null,null,null,null,null,null,null,null,null,null,null,null,{"$f":"AQ1812+1","v":"2025-08-16"}]
[]
[]
[]
[]
[]
[]
[null,null,null,null,null,null,null,null,null,null,null,null,null,null,null,null,null,null,null,null,null,null,null,null,null,null,null,null,null,null,null,null,null,null,null,null,null,null,null,null,null,null,"Sun"]
[null,null,null,null,null,null,null,null,null,null,null,null,null,null,null,null,null,null,null,null,null,null,null,null,null,null,null,null,null,null,null,null,null,null,null,null,null,null,null,null,null,null,{"$f":"AQ1828+1","v":"2025-08-17"}]
[]
[]
[]
[]
[]
[]
[null,null,"Notes:",null,null,null,null,null,null,null,null,null,null,null,null,null,null,null,null,null,null,null,null,null,null,null,null,null,null,null,null,null,null,null,null,null,"Notes:"]
[]
[]
[]
[]
[]
[null,null,{"$f":"\"Week of \"","v":"Week of "},null,null,null,null,"2025-08-18",null,null,null,null,null,null,null,null,null,null,null,null,null,null,null,null,null,null,null,null,null,null,null,null,null,null,"Week",null,{"$f":"\"Week of \"","v":"Week of "},null,null,null,null,{"$f":"H1849","v":"2025-08-18"}]
[null,null,null,null,null,null,null,null,null,null,null,null,null,null,null,null,null,null,null,null,null,null,null,null,null,null,null,null,null,null,null,null,null,null,34]
[null,null,"TO DO",null,null,null,null,null,"Mon",null,null,null,null,null,null,null,null,null,null,null,null,null,null,null,null,null,null,null,null,null,null,null,null,null,null,null,"FORWARD",null,null,null,null,null,"Thu"]
[null,null,null,null,null,null,null,null,{"$f":"H1849","v":"2025-08-18"},null,null,null,null,null,null,null,null,null,null,null,null,null,null,null,null,null,null,null,null,null,null,null,null,null,null,null,null,null,null,null,null,null,{"$f":"I1884+1","v":"2025-08-21"}]
[]
[]
[]
[]
[]
[]
[]
[]
[]
[]
[]
[]
[]
[]
[null,null,null,null,null,null,null,null,"Tue",null,null,null,null,null,null,null,null,null,null,null,null,null,null,null,null,null,null,null,null,null,null,null,null,null,null,null,null,null,null,null,null,null,"Fri"]
[null,null,null,null,null,null,null,null,{"$f":"I1852+1","v":"2025-08-19"},null,null,null,null,null,null,null,null,null,null,null,null,null,null,null,null,null,null,null,null,null,null,null,null,null,null,null,null,null,null,null,null,null,{"$f":"AQ1852+1","v":"2025-08-22"}]
[]
[]
[]
[]
[]
[]
[]
[]
[]
[]
[]
[]
[]
[]
[null,null,null,null,null,null,null,null,"Wed",null,null,null,null,null,null,null,null,null,null,null,null,null,null,null,null,null,null,null,null,null,null,null,null,null,null,null,null,null,null,null,null,null,"Sat"]
[null,null,null,null,null,null,null,null,{"$f":"I1868+1","v":"2025-08-20"},null,null,null,null,null,null,null,null,null,null,null,null,null,null,null,null,null,null,null,null,null,null,null,null,null,null,null,null,null,null,null,null,null,{"$f":"AQ1868+1","v":"2025-08-23"}]
[]
[]
[]
[]
[]
[]
[null,null,null,null,null,null,null,null,null,null,null,null,null,null,null,null,null,null,null,null,null,null,null,null,null,null,null,null,null,null,null,null,null,null,null,null,null,null,null,null,null,null,"Sun"]
[null,null,null,null,null,null,null,null,null,null,null,null,null,null,null,null,null,null,null,null,null,null,null,null,null,null,null,null,null,null,null,null,null,null,null,null,null,null,null,null,null,null,{"$f":"AQ1884+1","v":"2025-08-24"}]
[]
[]
[]
[]
[]
[]
[null,null,"Notes:",null,null,null,null,null,null,null,null,null,null,null,null,null,null,null,null,null,null,null,null,null,null,null,null,null,null,null,null,null,null,null,null,null,"Notes:"]
[]
[]
[]
[]
[]
[null,null,{"$f":"\"Week of \"","v":"Week of "},null,null,null,null,"2025-08-25",null,null,null,null,null,null,null,null,null,null,null,null,null,null,null,null,null,null,null,null,null,null,null,null,null,null,"Week",null,{"$f":"\"Week of \"","v":"Week of "},null,null,null,null,{"$f":"H1905","v":"2025-08-25"}]
[null,null,null,null,null,null,null,null,null,null,null,null,null,null,null,null,null,null,null,null,null,null,null,null,null,null,null,null,null,null,null,null,null,null,35]
[null,null,"TO DO",null,null,null,null,null,"Mon",null,null,null,null,null,null,null,null,null,null,null,null,null,null,null,null,null,null,null,null,null,null,null,null,null,null,null,"FORWARD",null,null,null,null,null,"Thu"]
[null,null,null,null,null,null,null,null,{"$f":"H1905","v":"2025-08-25"},null,null,null,null,null,null,null,null,null,null,null,null,null,null,null,null,null,null,null,null,null,null,null,null,null,null,null,null,null,null,null,null,null,{"$f":"I1940+1","v":"2025-08-28"}]
[]
[]
[]
[]
[]
[]
[]
[]
[]
[]
[]
[]
[]
[]
[null,null,null,null,null,null,null,null,"Tue",null,null,null,null,null,null,null,null,null,null,null,null,null,null,null,null,null,null,null,null,null,null,null,null,null,null,null,null,null,null,null,null,null,"Fri"]
[null,null,null,null,null,null,null,null,{"$f":"I1908+1","v":"2025-08-26"},null,null,null,null,null,null,null,null,null,null,null,null,null,null,null,null,null,null,null,null,null,null,null,null,null,null,null,null,null,null,null,null,null,{"$f":"AQ1908+1","v":"2025-08-29"}]
[]
[]
[]
[]
[]
[]
[]
[]
[]
[]
[]
[]
[]
[]
[null,null,null,null,null,null,null,null,"Wed",null,null,null,null,null,null,null,null,null,null,null,null,null,null,null,null,null,null,null,null,null,null,null,null,null,null,null,null,null,null,null,null,null,"Sat"]
[null,null,null,null,null,null,null,null,{"$f":"I1924+1","v":"2025-08-27"},null,null,null,null,null,null,null,null,null,null,null,null,null,null,null,null,null,null,null,null,null,null,null,null,null,null,null,null,null,null,null,null,null,{"$f":"AQ1924+1","v":"2025-08-30"}]
[]
[]
[]
[]
[]
[]
[null,null,null,null,null,null,null,null,null,null,null,null,null,null,null,null,null,null,null,null,null,null,null,null,null,null,null,null,null,null,null,null,null,null,null,null,null,null,null,null,null,null,"Sun"]
[null,null,null,null,null,null,null,null,null,null,null,null,null,null,null,null,null,null,null,null,null,null,null,null,null,null,null,null,null,null,null,null,null,null,null,null,null,null,null,null,null,null,{"$f":"AQ1940+1","v":"2025-08-31"}]
[]
[]
[]
[]
[]
[]
[null,null,"Notes:",null,null,null,null,null,null,null,null,null,null,null,null,null,null,null,null,null,null,null,null,null,null,null,null,null,null,null,null,null,null,null,null,null,"Notes:"]
[]
[]
[]
[]
[]
[null,null,{"$f":"\"Week of \"","v":"Week of "},null,null,null,null,"2025-09-01",null,null,null,null,null,null,null,null,null,null,null,null,null,null,null,null,null,null,null,null,null,null,null,null,null,null,"Week",null,{"$f":"\"Week of \"","v":"Week of "},null,null,null,null,{"$f":"H1961","v":"2025-09-01"}]
[null,null,null,null,null,null,null,null,null,null,null,null,null,null,null,null,null,null,null,null,null,null,null,null,null,null,null,null,null,null,null,null,null,null,36]
[null,null,"TO DO",null,null,null,null,null,"Mon",null,null,null,null,null,null,null,null,null,null,null,null,null,null,null,null,null,null,null,null,null,null,null,null,null,null,null,"FORWARD",null,null,null,null,null,"Thu"]
[null,null,null,null,null,null,null,null,{"$f":"H1961","v":"2025-09-01"},null,null,null,null,null,null,null,null,null,null,null,null,null,null,null,null,null,null,null,null,null,null,null,null,null,null,null,null,null,null,null,null,null,{"$f":"I1996+1","v":"2025-09-04"}]
[]
[]
[]
[]
[]
[]
[]
[]
[]
[]
[]
[]
[]
[]
[null,null,null,null,null,null,null,null,"Tue",null,null,null,null,null,null,null,null,null,null,null,null,null,null,null,null,null,null,null,null,null,null,null,null,null,null,null,null,null,null,null,null,null,"Fri"]
[null,null,null,null,null,null,null,null,{"$f":"I1964+1","v":"2025-09-02"},null,null,null,null,null,null,null,null,null,null,null,null,null,null,null,null,null,null,null,null,null,null,null,null,null,null,null,null,null,null,null,null,null,{"$f":"AQ1964+1","v":"2025-09-05"}]
[]
[]
[]
[]
[]
[]
[]
[]
[]
[]
[]
[]
[]
[]
[null,null,null,null,null,null,null,null,"Wed",null,null,null,null,null,null,null,null,null,null,null,null,null,null,null,null,null,null,null,null,null,null,null,null,null,null,null,null,null,null,null,null,null,"Sat"]
[null,null,null,null,null,null,null,null,{"$f":"I1980+1","v":"2025-09-03"},null,null,null,null,null,null,null,null,null,null,null,null,null,null,null,null,null,null,null,null,null,null,null,null,null,null,null,null,null,null,null,null,null,{"$f":"AQ1980+1","v":"2025-09-06"}]
[]
[]
[]
[]
[]
[]
[null,null,null,null,null,null,null,null,null,null,null,null,null,null,null,null,null,null,null,null,null,null,null,null,null,null,null,null,null,null,null,null,null,null,null,null,null,null,null,null,null,null,"Sun"]
[null,null,null,null,null,null,null,null,null,null,null,null,null,null,null,null,null,null,null,null,null,null,null,null,null,null,null,null,null,null,null,null,null,null,null,null,null,null,null,null,null,null,{"$f":"AQ1996+1","v":"2025-09-07"}]
[]
[]
[]
[]
[]
[]
[null,null,"Notes:",null,null,null,null,null,null,null,null,null,null,null,null,null,null,null,null,null,null,null,null,null,null,null,null,null,null,null,null,null,null,null,null,null,"Notes:"]
[]
[]
[]
[]
[]
[null,null,{"$f":"\"Week of \"","v":"Week of "},null,null,null,null,"2025-09-08",null,null,null,null,null,null,null,null,null,null,null,null,null,null,null,null,null,null,null,null,null,null,null,null,null,null,"Week",null,{"$f":"\"Week of \"","v":"Week of "},null,null,null,null,{"$f":"H2017","v":"2025-09-08"}]
[null,null,null,null,null,null,null,null,null,null,null,null,null,null,null,null,null,null,null,null,null,null,null,null,null,null,null,null,null,null,null,null,null,null,37]
[null,null,"TO DO",null,null,null,null,null,"Mon",null,null,null,null,null,null,null,null,null,null,null,null,null,null,null,null,null,null,null,null,null,null,null,null,null,null,null,"FORWARD",null,null,null,null,null,"Thu"]
[null,null,null,null,null,null,null,null,{"$f":"H2017","v":"2025-09-08"},null,null,null,null,null,null,null,null,null,null,null,null,null,null,null,null,null,null,null,null,null,null,null,null,null,null,null,null,null,null,null,null,null,{"$f":"I2052+1","v":"2025-09-11"}]
[]
[]
[]
[]
[]
[]
[]
[]
[]
[]
[]
[]
[]
[]
[null,null,null,null,null,null,null,null,"Tue",null,null,null,null,null,null,null,null,null,null,null,null,null,null,null,null,null,null,null,null,null,null,null,null,null,null,null,null,null,null,null,null,null,"Fri"]
[null,null,null,null,null,null,null,null,{"$f":"I2020+1","v":"2025-09-09"},null,null,null,null,null,null,null,null,null,null,null,null,null,null,null,null,null,null,null,null,null,null,null,null,null,null,null,null,null,null,null,null,null,{"$f":"AQ2020+1","v":"2025-09-12"}]
[]
[]
[]
[]
[]
[]
[]
[]
[]
[]
[]
[]
[]
[]
[null,null,null,null,null,null,null,null,"Wed",null,null,null,null,null,null,null,null,null,null,null,null,null,null,null,null,null,null,null,null,null,null,null,null,null,null,null,null,null,null,null,null,null,"Sat"]
[null,null,null,null,null,null,null,null,{"$f":"I2036+1","v":"2025-09-10"},null,null,null,null,null,null,null,null,null,null,null,null,null,null,null,null,null,null,null,null,null,null,null,null,null,null,null,null,null,null,null,null,null,{"$f":"AQ2036+1","v":"2025-09-13"}]
[]
[]
[]
[]
[]
[]
[null,null,null,null,null,null,null,null,null,null,null,null,null,null,null,null,null,null,null,null,null,null,null,null,null,null,null,null,null,null,null,null,null,null,null,null,null,null,null,null,null,null,"Sun"]
[null,null,null,null,null,null,null,null,null,null,null,null,null,null,null,null,null,null,null,null,null,null,null,null,null,null,null,null,null,null,null,null,null,null,null,null,null,null,null,null,null,null,{"$f":"AQ2052+1","v":"2025-09-14"}]
[]
[]
[]
[]
[]
[]
[null,null,"Notes:",null,null,null,null,null,null,null,null,null,null,null,null,null,null,null,null,null,null,null,null,null,null,null,null,null,null,null,null,null,null,null,null,null,"Notes:"]
[]
[]
[]
[]
[]
[null,null,{"$f":"\"Week of \"","v":"Week of "},null,null,null,null,"2025-09-15",null,null,null,null,null,null,null,null,null,null,null,null,null,null,null,null,null,null,null,null,null,null,null,null,null,null,"Week",null,{"$f":"\"Week of \"","v":"Week of "},null,null,null,null,{"$f":"H2073","v":"2025-09-15"}]
[null,null,null,null,null,null,null,null,null,null,null,null,null,null,null,null,null,null,null,null,null,null,null,null,null,null,null,null,null,null,null,null,null,null,38]
[null,null,"TO DO",null,null,null,null,null,"Mon",null,null,null,null,null,null,null,null,null,null,null,null,null,null,null,null,null,null,null,null,null,null,null,null,null,null,null,"FORWARD",null,null,null,null,null,"Thu"]
[null,null,null,null,null,null,null,null,{"$f":"H2073","v":"2025-09-15"},null,null,null,null,null,null,null,null,null,null,null,null,null,null,null,null,null,null,null,null,null,null,null,null,null,null,null,null,null,null,null,null,null,{"$f":"I2108+1","v":"2025-09-18"}]
[]
[]
[]
[]
[]
[]
[]
[]
[]
[]
[]
[]
[]
[]
[null,null,null,null,null,null,null,null,"Tue",null,null,null,null,null,null,null,null,null,null,null,null,null,null,null,null,null,null,null,null,null,null,null,null,null,null,null,null,null,null,null,null,null,"Fri"]
[null,null,null,null,null,null,null,null,{"$f":"I2076+1","v":"2025-09-16"},null,null,null,null,null,null,null,null,null,null,null,null,null,null,null,null,null,null,null,null,null,null,null,null,null,null,null,null,null,null,null,null,null,{"$f":"AQ2076+1","v":"2025-09-19"}]
[]
[]
[]
[]
[]
[]
[]
[]
[]
[]
[]
[]
[]
[]
[null,null,null,null,null,null,null,null,"Wed",null,null,null,null,null,null,null,null,null,null,null,null,null,null,null,null,null,null,null,null,null,null,null,null,null,null,null,null,null,null,null,null,null,"Sat"]
[null,null,null,null,null,null,null,null,{"$f":"I2092+1","v":"2025-09-17"},null,null,null,null,null,null,null,null,null,null,null,null,null,null,null,null,null,null,null,null,null,null,null,null,null,null,null,null,null,null,null,null,null,{"$f":"AQ2092+1","v":"2025-09-20"}]
[]
[]
[]
[]
[]
[]
[null,null,null,null,null,null,null,null,null,null,null,null,null,null,null,null,null,null,null,null,null,null,null,null,null,null,null,null,null,null,null,null,null,null,null,null,null,null,null,null,null,null,"Sun"]
[null,null,null,null,null,null,null,null,null,null,null,null,null,null,null,null,null,null,null,null,null,null,null,null,null,null,null,null,null,null,null,null,null,null,null,null,null,null,null,null,null,null,{"$f":"AQ2108+1","v":"2025-09-21"}]
[]
[]
[]
[]
[]
[]
[null,null,"Notes:",null,null,null,null,null,null,null,null,null,null,null,null,null,null,null,null,null,null,null,null,null,null,null,null,null,null,null,null,null,null,null,null,null,"Notes:"]
[]
[]
[]
[]
[]
[null,null,{"$f":"\"Week of \"","v":"Week of "},null,null,null,null,"2025-09-22",null,null,null,null,null,null,null,null,null,null,null,null,null,null,null,null,null,null,null,null,null,null,null,null,null,null,"Week",null,{"$f":"\"Week of \"","v":"Week of "},null,null,null,null,{"$f":"H2129","v":"2025-09-22"}]
[null,null,null,null,null,null,null,null,null,null,null,null,null,null,null,null,null,null,null,null,null,null,null,null,null,null,null,null,null,null,null,null,null,null,39]
[null,null,"TO DO",null,null,null,null,null,"Mon",null,null,null,null,null,null,null,null,null,null,null,null,null,null,null,null,null,null,null,null,null,null,null,null,null,null,null,"FORWARD",null,null,null,null,null,"Thu"]
[null,null,null,null,null,null,null,null,{"$f":"H2129","v":"2025-09-22"},null,null,null,null,null,null,null,null,null,null,null,null,null,null,null,null,null,null,null,null,null,null,null,null,null,null,null,null,null,null,null,null,null,{"$f":"I2164+1","v":"2025-09-25"}]
[]
[]
[]
[]
[]
[]
[]
[]
[]
[]
[]
[]
[]
[]
[null,null,null,null,null,null,null,null,"Tue",null,null,null,null,null,null,null,null,null,null,null,null,null,null,null,null,null,null,null,null,null,null,null,null,null,null,null,null,null,null,null,null,null,"Fri"]
[null,null,null,null,null,null,null,null,{"$f":"I2132+1","v":"2025-09-23"},null,null,null,null,null,null,null,null,null,null,null,null,null,null,null,null,null,null,null,null,null,null,null,null,null,null,null,null,null,null,null,null,null,{"$f":"AQ2132+1","v":"2025-09-26"}]
[]
[]
[]
[]
[]
[]
[]
[]
[]
[]
[]
[]
[]
[]
[null,null,null,null,null,null,null,null,"Wed",null,null,null,null,null,null,null,null,null,null,null,null,null,null,null,null,null,null,null,null,null,null,null,null,null,null,null,null,null,null,null,null,null,"Sat"]
[null,null,null,null,null,null,null,null,{"$f":"I2148+1","v":"2025-09-24"},null,null,null,null,null,null,null,null,null,null,null,null,null,null,null,null,null,null,null,null,null,null,null,null,null,null,null,null,null,null,null,null,null,{"$f":"AQ2148+1","v":"2025-09-27"}]
[]
[]
[]
[]
[]
[]
[null,null,null,null,null,null,null,null,null,null,null,null,null,null,null,null,null,null,null,null,null,null,null,null,null,null,null,null,null,null,null,null,null,null,null,null,null,null,null,null,null,null,"Sun"]
[null,null,null,null,null,null,null,null,null,null,null,null,null,null,null,null,null,null,null,null,null,null,null,null,null,null,null,null,null,null,null,null,null,null,null,null,null,null,null,null,null,null,{"$f":"AQ2164+1","v":"2025-09-28"}]
[]
[]
[]
[]
[]
[]
[null,null,"Notes:",null,null,null,null,null,null,null,null,null,null,null,null,null,null,null,null,null,null,null,null,null,null,null,null,null,null,null,null,null,null,null,null,null,"Notes:"]
[]
[]
[]
[]
[]
[null,null,{"$f":"\"Week of \"","v":"Week of "},null,null,null,null,"2025-09-29",null,null,null,null,null,null,null,null,null,null,null,null,null,null,null,null,null,null,null,null,null,null,null,null,null,null,"Week",null,{"$f":"\"Week of \"","v":"Week of "},null,null,null,null,{"$f":"H2185","v":"2025-09-29"}]
[null,null,null,null,null,null,null,null,null,null,null,null,null,null,null,null,null,null,null,null,null,null,null,null,null,null,null,null,null,null,null,null,null,null,40]
[null,null,"TO DO",null,null,null,null,null,"Mon",null,null,null,null,null,null,null,null,null,null,null,null,null,null,null,null,null,null,null,null,null,null,null,null,null,null,null,"FORWARD",null,null,null,null,null,"Thu"]
[null,null,null,null,null,null,null,null,{"$f":"H2185","v":"2025-09-29"},null,null,null,null,null,null,null,null,null,null,null,null,null,null,null,null,null,null,null,null,null,null,null,null,null,null,null,null,null,null,null,null,null,{"$f":"I2220+1","v":"2025-10-02"}]
[]
[]
[]
[]
[]
[]
[]
[]
[]
[]
[]
[]
[]
[]
[null,null,null,null,null,null,null,null,"Tue",null,null,null,null,null,null,null,null,null,null,null,null,null,null,null,null,null,null,null,null,null,null,null,null,null,null,null,null,null,null,null,null,null,"Fri"]
[null,null,null,null,null,null,null,null,{"$f":"I2188+1","v":"2025-09-30"},null,null,null,null,null,null,null,null,null,null,null,null,null,null,null,null,null,null,null,null,null,null,null,null,null,null,null,null,null,null,null,null,null,{"$f":"AQ2188+1","v":"2025-10-03"}]
[]
[]
[]
[]
[]
[]
[]
[]
[]
[]
[]
[]
[]
[]
[null,null,null,null,null,null,null,null,"Wed",null,null,null,null,null,null,null,null,null,null,null,null,null,null,null,null,null,null,null,null,null,null,null,null,null,null,null,null,null,null,null,null,null,"Sat"]
[null,null,null,null,null,null,null,null,{"$f":"I2204+1","v":"2025-10-01"},null,null,null,null,null,null,null,null,null,null,null,null,null,null,null,null,null,null,null,null,null,null,null,null,null,null,null,null,null,null,null,null,null,{"$f":"AQ2204+1","v":"2025-10-04"}]
[]
[]
[]
[]
[]
[]
[null,null,null,null,null,null,null,null,null,null,null,null,null,null,null,null,null,null,null,null,null,null,null,null,null,null,null,null,null,null,null,null,null,null,null,null,null,null,null,null,null,null,"Sun"]
[null,null,null,null,null,null,null,null,null,null,null,null,null,null,null,null,null,null,null,null,null,null,null,null,null,null,null,null,null,null,null,null,null,null,null,null,null,null,null,null,null,null,{"$f":"AQ2220+1","v":"2025-10-05"}]
[]
[]
[]
[]
[]
[]
[null,null,"Notes:",null,null,null,null,null,null,null,null,null,null,null,null,null,null,null,null,null,null,null,null,null,null,null,null,null,null,null,null,null,null,null,null,null,"Notes:"]
[]
[]
[]
[]
[]
[null,null,{"$f":"\"Week of \"","v":"Week of "},null,null,null,null,"2025-10-06",null,null,null,null,null,null,null,null,null,null,null,null,null,null,null,null,null,null,null,null,null,null,null,null,null,null,"Week",null,{"$f":"\"Week of \"","v":"Week of "},null,null,null,null,{"$f":"H2241","v":"2025-10-06"}]
[null,null,null,null,null,null,null,null,null,null,null,null,null,null,null,null,null,null,null,null,null,null,null,null,null,null,null,null,null,null,null,null,null,null,41]
[null,null,"TO DO",null,null,null,null,null,"Mon",null,null,null,null,null,null,null,null,null,null,null,null,null,null,null,null,null,null,null,null,null,null,null,null,null,null,null,"FORWARD",null,null,null,null,null,"Thu"]
[null,null,null,null,null,null,null,null,{"$f":"H2241","v":"2025-10-06"},null,null,null,null,null,null,null,null,null,null,null,null,null,null,null,null,null,null,null,null,null,null,null,null,null,null,null,null,null,null,null,null,null,{"$f":"I2276+1","v":"2025-10-09"}]
[]
[]
[]
[]
[]
[]
[]
[]
[]
[]
[]
[]
[]
[]
[null,null,null,null,null,null,null,null,"Tue",null,null,null,null,null,null,null,null,null,null,null,null,null,null,null,null,null,null,null,null,null,null,null,null,null,null,null,null,null,null,null,null,null,"Fri"]
[null,null,null,null,null,null,null,null,{"$f":"I2244+1","v":"2025-10-07"},null,null,null,null,null,null,null,null,null,null,null,null,null,null,null,null,null,null,null,null,null,null,null,null,null,null,null,null,null,null,null,null,null,{"$f":"AQ2244+1","v":"2025-10-10"}]
[]
[]
[]
[]
[]
[]
[]
[]
[]
[]
[]
[]
[]
[]
[null,null,null,null,null,null,null,null,"Wed",null,null,null,null,null,null,null,null,null,null,null,null,null,null,null,null,null,null,null,null,null,null,null,null,null,null,null,null,null,null,null,null,null,"Sat"]
[null,null,null,null,null,null,null,null,{"$f":"I2260+1","v":"2025-10-08"},null,null,null,null,null,null,null,null,null,null,null,null,null,null,null,null,null,null,null,null,null,null,null,null,null,null,null,null,null,null,null,null,null,{"$f":"AQ2260+1","v":"2025-10-11"}]
[]
[]
[]
[]
[]
[]
[null,null,null,null,null,null,null,null,null,null,null,null,null,null,null,null,null,null,null,null,null,null,null,null,null,null,null,null,null,null,null,null,null,null,null,null,null,null,null,null,null,null,"Sun"]
[null,null,null,null,null,null,null,null,null,null,null,null,null,null,null,null,null,null,null,null,null,null,null,null,null,null,null,null,null,null,null,null,null,null,null,null,null,null,null,null,null,null,{"$f":"AQ2276+1","v":"2025-10-12"}]
[]
[]
[]
[]
[]
[]
[null,null,"Notes:",null,null,null,null,null,null,null,null,null,null,null,null,null,null,null,null,null,null,null,null,null,null,null,null,null,null,null,null,null,null,null,null,null,"Notes:"]
[]
[]
[]
[]
[]
[null,null,{"$f":"\"Week of \"","v":"Week of "},null,null,null,null,"2025-10-13",null,null,null,null,null,null,null,null,null,null,null,null,null,null,null,null,null,null,null,null,null,null,null,null,null,null,"Week",null,{"$f":"\"Week of \"","v":"Week of "},null,null,null,null,{"$f":"H2297","v":"2025-10-13"}]
[null,null,null,null,null,null,null,null,null,null,null,null,null,null,null,null,null,null,null,null,null,null,null,null,null,null,null,null,null,null,null,null,null,null,42]
[null,null,"TO DO",null,null,null,null,null,"Mon",null,null,null,null,null,null,null,null,null,null,null,null,null,null,null,null,null,null,null,null,null,null,null,null,null,null,null,"FORWARD",null,null,null,null,null,"Thu"]
[null,null,null,null,null,null,null,null,{"$f":"H2297","v":"2025-10-13"},null,null,null,null,null,null,null,null,null,null,null,null,null,null,null,null,null,null,null,null,null,null,null,null,null,null,null,null,null,null,null,null,null,{"$f":"I2332+1","v":"2025-10-16"}]
[]
[]
[]
[]
[]
[]
[]
[]
[]
[]
[]
[]
[]
[]
[null,null,null,null,null,null,null,null,"Tue",null,null,null,null,null,null,null,null,null,null,null,null,null,null,null,null,null,null,null,null,null,null,null,null,null,null,null,null,null,null,null,null,null,"Fri"]
[null,null,null,null,null,null,null,null,{"$f":"I2300+1","v":"2025-10-14"},null,null,null,null,null,null,null,null,null,null,null,null,null,null,null,null,null,null,null,null,null,null,null,null,null,null,null,null,null,null,null,null,null,{"$f":"AQ2300+1","v":"2025-10-17"}]
[]
[]
[]
[]
[]
[]
[]
[]
[]
[]
[]
[]
[]
[]
[null,null,null,null,null,null,null,null,"Wed",null,null,null,null,null,null,null,null,null,null,null,null,null,null,null,null,null,null,null,null,null,null,null,null,null,null,null,null,null,null,null,null,null,"Sat"]
[null,null,null,null,null,null,null,null,{"$f":"I2316+1","v":"2025-10-15"},null,null,null,null,null,null,null,null,null,null,null,null,null,null,null,null,null,null,null,null,null,null,null,null,null,null,null,null,null,null,null,null,null,{"$f":"AQ2316+1","v":"2025-10-18"}]
[]
[]
[]
[]
[]
[]
[null,null,null,null,null,null,null,null,null,null,null,null,null,null,null,null,null,null,null,null,null,null,null,null,null,null,null,null,null,null,null,null,null,null,null,null,null,null,null,null,null,null,"Sun"]
[null,null,null,null,null,null,null,null,null,null,null,null,null,null,null,null,null,null,null,null,null,null,null,null,null,null,null,null,null,null,null,null,null,null,null,null,null,null,null,null,null,null,{"$f":"AQ2332+1","v":"2025-10-19"}]
[]
[]
[]
[]
[]
[]
[null,null,"Notes:",null,null,null,null,null,null,null,null,null,null,null,null,null,null,null,null,null,null,null,null,null,null,null,null,null,null,null,null,null,null,null,null,null,"Notes:"]
[]
[]
[]
[]
[]
[null,null,{"$f":"\"Week of \"","v":"Week of "},null,null,null,null,"2025-10-20",null,null,null,null,null,null,null,null,null,null,null,null,null,null,null,null,null,null,null,null,null,null,null,null,null,null,"Week",null,{"$f":"\"Week of \"","v":"Week of "},null,null,null,null,{"$f":"H2353","v":"2025-10-20"}]
[null,null,null,null,null,null,null,null,null,null,null,null,null,null,null,null,null,null,null,null,null,null,null,null,null,null,null,null,null,null,null,null,null,null,43]
[null,null,"TO DO",null,null,null,null,null,"Mon",null,null,null,null,null,null,null,null,null,null,null,null,null,null,null,null,null,null,null,null,null,null,null,null,null,null,null,"FORWARD",null,null,null,null,null,"Thu"]
[null,null,null,null,null,null,null,null,{"$f":"H2353","v":"2025-10-20"},null,null,null,null,null,null,null,null,null,null,null,null,null,null,null,null,null,null,null,null,null,null,null,null,null,null,null,null,null,null,null,null,null,{"$f":"I2388+1","v":"2025-10-23"}]
[]
[]
[]
[]
[]
[]
[]
[]
[]
[]
[]
[]
[]
[]
[null,null,null,null,null,null,null,null,"Tue",null,null,null,null,null,null,null,null,null,null,null,null,null,null,null,null,null,null,null,null,null,null,null,null,null,null,null,null,null,null,null,null,null,"Fri"]
[null,null,null,null,null,null,null,null,{"$f":"I2356+1","v":"2025-10-21"},null,null,null,null,null,null,null,null,null,null,null,null,null,null,null,null,null,null,null,null,null,null,null,null,null,null,null,null,null,null,null,null,null,{"$f":"AQ2356+1","v":"2025-10-24"}]
[]
[]
[]
[]
[]
[]
[]
[]
[]
[]
[]
[]
[]
[]
[null,null,null,null,null,null,null,null,"Wed",null,null,null,null,null,null,null,null,null,null,null,null,null,null,null,null,null,null,null,null,null,null,null,null,null,null,null,null,null,null,null,null,null,"Sat"]
[null,null,null,null,null,null,null,null,{"$f":"I2372+1","v":"2025-10-22"},null,null,null,null,null,null,null,null,null,null,null,null,null,null,null,null,null,null,null,null,null,null,null,null,null,null,null,null,null,null,null,null,null,{"$f":"AQ2372+1","v":"2025-10-25"}]
[]
[]
[]
[]
[]
[]
[null,null,null,null,null,null,null,null,null,null,null,null,null,null,null,null,null,null,null,null,null,null,null,null,null,null,null,null,null,null,null,null,null,null,null,null,null,null,null,null,null,null,"Sun"]
[null,null,null,null,null,null,null,null,null,null,null,null,null,null,null,null,null,null,null,null,null,null,null,null,null,null,null,null,null,null,null,null,null,null,null,null,null,null,null,null,null,null,{"$f":"AQ2388+1","v":"2025-10-26"}]
[]
[]
[]
[]
[]
[]
[null,null,"Notes:",null,null,null,null,null,null,null,null,null,null,null,null,null,null,null,null,null,null,null,null,null,null,null,null,null,null,null,null,null,null,null,null,null,"Notes:"]
[]
[]
[]
[]
[]
[null,null,{"$f":"\"Week of \"","v":"Week of "},null,null,null,null,"2025-10-27",null,null,null,null,null,null,null,null,null,null,null,null,null,null,null,null,null,null,null,null,null,null,null,null,null,null,"Week",null,{"$f":"\"Week of \"","v":"Week of "},null,null,null,null,{"$f":"H2409","v":"2025-10-27"}]
[null,null,null,null,null,null,null,null,null,null,null,null,null,null,null,null,null,null,null,null,null,null,null,null,null,null,null,null,null,null,null,null,null,null,44]
[null,null,"TO DO",null,null,null,null,null,"Mon",null,null,null,null,null,null,null,null,null,null,null,null,null,null,null,null,null,null,null,null,null,null,null,null,null,null,null,"FORWARD",null,null,null,null,null,"Thu"]
[null,null,null,null,null,null,null,null,{"$f":"H2409","v":"2025-10-27"},null,null,null,null,null,null,null,null,null,null,null,null,null,null,null,null,null,null,null,null,null,null,null,null,null,null,null,null,null,null,null,null,null,{"$f":"I2444+1","v":"2025-10-30"}]
[]
[]
[]
[]
[]
[]
[]
[]
[]
[]
[]
[]
[]
[]
[null,null,null,null,null,null,null,null,"Tue",null,null,null,null,null,null,null,null,null,null,null,null,null,null,null,null,null,null,null,null,null,null,null,null,null,null,null,null,null,null,null,null,null,"Fri"]
[null,null,null,null,null,null,null,null,{"$f":"I2412+1","v":"2025-10-28"},null,null,null,null,null,null,null,null,null,null,null,null,null,null,null,null,null,null,null,null,null,null,null,null,null,null,null,null,null,null,null,null,null,{"$f":"AQ2412+1","v":"2025-10-31"}]
[]
[]
[]
[]
[]
[]
[]
[]
[]
[]
[]
[]
[]
[]
[null,null,null,null,null,null,null,null,"Wed",null,null,null,null,null,null,null,null,null,null,null,null,null,null,null,null,null,null,null,null,null,null,null,null,null,null,null,null,null,null,null,null,null,"Sat"]
[null,null,null,null,null,null,null,null,{"$f":"I2428+1","v":"2025-10-29"},null,null,null,null,null,null,null,null,null,null,null,null,null,null,null,null,null,null,null,null,null,null,null,null,null,null,null,null,null,null,null,null,null,{"$f":"AQ2428+1","v":"2025-11-01"}]
[]
[]
[]
[]
[]
[]
[null,null,null,null,null,null,null,null,null,null,null,null,null,null,null,null,null,null,null,null,null,null,null,null,null,null,null,null,null,null,null,null,null,null,null,null,null,null,null,null,null,null,"Sun"]
[null,null,null,null,null,null,null,null,null,null,null,null,null,null,null,null,null,null,null,null,null,null,null,null,null,null,null,null,null,null,null,null,null,null,null,null,null,null,null,null,null,null,{"$f":"AQ2444+1","v":"2025-11-02"}]
[]
[]
[]
[]
[]
[]
[null,null,"Notes:",null,null,null,null,null,null,null,null,null,null,null,null,null,null,null,null,null,null,null,null,null,null,null,null,null,null,null,null,null,null,null,null,null,"Notes:"]
[]
[]
[]
[]
[]
[null,null,{"$f":"\"Week of \"","v":"Week of "},null,null,null,null,"2025-11-03",null,null,null,null,null,null,null,null,null,null,null,null,null,null,null,null,null,null,null,null,null,null,null,null,null,null,"Week",null,{"$f":"\"Week of \"","v":"Week of "},null,null,null,null,{"$f":"H2465","v":"2025-11-03"}]
[null,null,null,null,null,null,null,null,null,null,null,null,null,null,null,null,null,null,null,null,null,null,null,null,null,null,null,null,null,null,null,null,null,null,45]
[null,null,"TO DO",null,null,null,null,null,"Mon",null,null,null,null,null,null,null,null,null,null,null,null,null,null,null,null,null,null,null,null,null,null,null,null,null,null,null,"FORWARD",null,null,null,null,null,"Thu"]
[null,null,null,null,null,null,null,null,{"$f":"H2465","v":"2025-11-03"},null,null,null,null,null,null,null,null,null,null,null,null,null,null,null,null,null,null,null,null,null,null,null,null,null,null,null,null,null,null,null,null,null,{"$f":"I2500+1","v":"2025-11-06"}]
[]
[]
[]
[]
[]
[]
[]
[]
[]
[]
[]
[]
[]
[]
[null,null,null,null,null,null,null,null,"Tue",null,null,null,null,null,null,null,null,null,null,null,null,null,null,null,null,null,null,null,null,null,null,null,null,null,null,null,null,null,null,null,null,null,"Fri"]
[null,null,null,null,null,null,null,null,{"$f":"I2468+1","v":"2025-11-04"},null,null,null,null,null,null,null,null,null,null,null,null,null,null,null,null,null,null,null,null,null,null,null,null,null,null,null,null,null,null,null,null,null,{"$f":"AQ2468+1","v":"2025-11-07"}]
[]
[]
[]
[]
[]
[]
[]
[]
[]
[]
[]
[]
[]
[]
[null,null,null,null,null,null,null,null,"Wed",null,null,null,null,null,null,null,null,null,null,null,null,null,null,null,null,null,null,null,null,null,null,null,null,null,null,null,null,null,null,null,null,null,"Sat"]
[null,null,null,null,null,null,null,null,{"$f":"I2484+1","v":"2025-11-05"},null,null,null,null,null,null,null,null,null,null,null,null,null,null,null,null,null,null,null,null,null,null,null,null,null,null,null,null,null,null,null,null,null,{"$f":"AQ2484+1","v":"2025-11-08"}]
[]
[]
[]
[]
[]
[]
[null,null,null,null,null,null,null,null,null,null,null,null,null,null,null,null,null,null,null,null,null,null,null,null,null,null,null,null,null,null,null,null,null,null,null,null,null,null,null,null,null,null,"Sun"]
[null,null,null,null,null,null,null,null,null,null,null,null,null,null,null,null,null,null,null,null,null,null,null,null,null,null,null,null,null,null,null,null,null,null,null,null,null,null,null,null,null,null,{"$f":"AQ2500+1","v":"2025-11-09"}]
[]
[]
[]
[]
[]
[]
[null,null,"Notes:",null,null,null,null,null,null,null,null,null,null,null,null,null,null,null,null,null,null,null,null,null,null,null,null,null,null,null,null,null,null,null,null,null,"Notes:"]
[]
[]
[]
[]
[]
[null,null,{"$f":"\"Week of \"","v":"Week of "},null,null,null,null,"2025-11-10",null,null,null,null,null,null,null,null,null,null,null,null,null,null,null,null,null,null,null,null,null,null,null,null,null,null,"Week",null,{"$f":"\"Week of \"","v":"Week of "},null,null,null,null,{"$f":"H2521","v":"2025-11-10"}]
[null,null,null,null,null,null,null,null,null,null,null,null,null,null,null,null,null,null,null,null,null,null,null,null,null,null,null,null,null,null,null,null,null,null,46]
[null,null,"TO DO",null,null,null,null,null,"Mon",null,null,null,null,null,null,null,null,null,null,null,null,null,null,null,null,null,null,null,null,null,null,null,null,null,null,null,"FORWARD",null,null,null,null,null,"Thu"]
[null,null,null,null,null,null,null,null,{"$f":"H2521","v":"2025-11-10"},null,null,null,null,null,null,null,null,null,null,null,null,null,null,null,null,null,null,null,null,null,null,null,null,null,null,null,null,null,null,null,null,null,{"$f":"I2556+1","v":"2025-11-13"}]
[]
[]
[]
[]
[]
[]
[]
[]
[]
[]
[]
[]
[]
[]
[null,null,null,null,null,null,null,null,"Tue",null,null,null,null,null,null,null,null,null,null,null,null,null,null,null,null,null,null,null,null,null,null,null,null,null,null,null,null,null,null,null,null,null,"Fri"]
[null,null,null,null,null,null,null,null,{"$f":"I2524+1","v":"2025-11-11"},null,null,null,null,null,null,null,null,null,null,null,null,null,null,null,null,null,null,null,null,null,null,null,null,null,null,null,null,null,null,null,null,null,{"$f":"AQ2524+1","v":"2025-11-14"}]
[]
[]
[]
[]
[]
[]
[]
[]
[]
[]
[]
[]
[]
[]
[null,null,null,null,null,null,null,null,"Wed",null,null,null,null,null,null,null,null,null,null,null,null,null,null,null,null,null,null,null,null,null,null,null,null,null,null,null,null,null,null,null,null,null,"Sat"]
[null,null,null,null,null,null,null,null,{"$f":"I2540+1","v":"2025-11-12"},null,null,null,null,null,null,null,null,null,null,null,null,null,null,null,null,null,null,null,null,null,null,null,null,null,null,null,null,null,null,null,null,null,{"$f":"AQ2540+1","v":"2025-11-15"}]
[]
[]
[]
[]
[]
[]
[null,null,null,null,null,null,null,null,null,null,null,null,null,null,null,null,null,null,null,null,null,null,null,null,null,null,null,null,null,null,null,null,null,null,null,null,null,null,null,null,null,null,"Sun"]
[null,null,null,null,null,null,null,null,null,null,null,null,null,null,null,null,null,null,null,null,null,null,null,null,null,null,null,null,null,null,null,null,null,null,null,null,null,null,null,null,null,null,{"$f":"AQ2556+1","v":"2025-11-16"}]
[]
[]
[]
[]
[]
[]
[null,null,"Notes:",null,null,null,null,null,null,null,null,null,null,null,null,null,null,null,null,null,null,null,null,null,null,null,null,null,null,null,null,null,null,null,null,null,"Notes:"]
[]
[]
[]
[]
[]
[null,null,{"$f":"\"Week of \"","v":"Week of "},null,null,null,null,"2025-11-17",null,null,null,null,null,null,null,null,null,null,null,null,null,null,null,null,null,null,null,null,null,null,null,null,null,null,"Week",null,{"$f":"\"Week of \"","v":"Week of "},null,null,null,null,{"$f":"H2577","v":"2025-11-17"}]
[null,null,null,null,null,null,null,null,null,null,null,null,null,null,null,null,null,null,null,null,null,null,null,null,null,null,null,null,null,null,null,null,null,null,47]
[null,null,"TO DO",null,null,null,null,null,"Mon",null,null,null,null,null,null,null,null,null,null,null,null,null,null,null,null,null,null,null,null,null,null,null,null,null,null,null,"FORWARD",null,null,null,null,null,"Thu"]
[null,null,null,null,null,null,null,null,{"$f":"H2577","v":"2025-11-17"},null,null,null,null,null,null,null,null,null,null,null,null,null,null,null,null,null,null,null,null,null,null,null,null,null,null,null,null,null,null,null,null,null,{"$f":"I2612+1","v":"2025-11-20"}]
[]
[]
[]
[]
[]
[]
[]
[]
[]
[]
[]
[]
[]
[]
[null,null,null,null,null,null,null,null,"Tue",null,null,null,null,null,null,null,null,null,null,null,null,null,null,null,null,null,null,null,null,null,null,null,null,null,null,null,null,null,null,null,null,null,"Fri"]
[null,null,null,null,null,null,null,null,{"$f":"I2580+1","v":"2025-11-18"},null,null,null,null,null,null,null,null,null,null,null,null,null,null,null,null,null,null,null,null,null,null,null,null,null,null,null,null,null,null,null,null,null,{"$f":"AQ2580+1","v":"2025-11-21"}]
[]
[]
[]
[]
[]
[]
[]
[]
[]
[]
[]
[]
[]
[]
[null,null,null,null,null,null,null,null,"Wed",null,null,null,null,null,null,null,null,null,null,null,null,null,null,null,null,null,null,null,null,null,null,null,null,null,null,null,null,null,null,null,null,null,"Sat"]
[null,null,null,null,null,null,null,null,{"$f":"I2596+1","v":"2025-11-19"},null,null,null,null,null,null,null,null,null,null,null,null,null,null,null,null,null,null,null,null,null,null,null,null,null,null,null,null,null,null,null,null,null,{"$f":"AQ2596+1","v":"2025-11-22"}]
[]
[]
[]
[]
[]
[]
[null,null,null,null,null,null,null,null,null,null,null,null,null,null,null,null,null,null,null,null,null,null,null,null,null,null,null,null,null,null,null,null,null,null,null,null,null,null,null,null,null,null,"Sun"]
[null,null,null,null,null,null,null,null,null,null,null,null,null,null,null,null,null,null,null,null,null,null,null,null,null,null,null,null,null,null,null,null,null,null,null,null,null,null,null,null,null,null,{"$f":"AQ2612+1","v":"2025-11-23"}]
[]
[]
[]
[]
[]
[]
[null,null,"Notes:",null,null,null,null,null,null,null,null,null,null,null,null,null,null,null,null,null,null,null,null,null,null,null,null,null,null,null,null,null,null,null,null,null,"Notes:"]
[]
[]
[]
[]
[]
[null,null,{"$f":"\"Week of \"","v":"Week of "},null,null,null,null,"2025-11-24",null,null,null,null,null,null,null,null,null,null,null,null,null,null,null,null,null,null,null,null,null,null,null,null,null,null,"Week",null,{"$f":"\"Week of \"","v":"Week of "},null,null,null,null,{"$f":"H2633","v":"2025-11-24"}]
[null,null,null,null,null,null,null,null,null,null,null,null,null,null,null,null,null,null,null,null,null,null,null,null,null,null,null,null,null,null,null,null,null,null,48]
[null,null,"TO DO",null,null,null,null,null,"Mon",null,null,null,null,null,null,null,null,null,null,null,null,null,null,null,null,null,null,null,null,null,null,null,null,null,null,null,"FORWARD",null,null,null,null,null,"Thu"]
[null,null,null,null,null,null,null,null,{"$f":"H2633","v":"2025-11-24"},null,null,null,null,null,null,null,null,null,null,null,null,null,null,null,null,null,null,null,null,null,null,null,null,null,null,null,null,null,null,null,null,null,{"$f":"I2668+1","v":"2025-11-27"}]
[]
[]
[]
[]
[]
[]
[]
[]
[]
[]
[]
[]
[]
[]
[null,null,null,null,null,null,null,null,"Tue",null,null,null,null,null,null,null,null,null,null,null,null,null,null,null,null,null,null,null,null,null,null,null,null,null,null,null,null,null,null,null,null,null,"Fri"]
[null,null,null,null,null,null,null,null,{"$f":"I2636+1","v":"2025-11-25"},null,null,null,null,null,null,null,null,null,null,null,null,null,null,null,null,null,null,null,null,null,null,null,null,null,null,null,null,null,null,null,null,null,{"$f":"AQ2636+1","v":"2025-11-28"}]
[]
[]
[]
[]
[]
[]
[]
[]
[]
[]
[]
[]
[]
[]
[null,null,null,null,null,null,null,null,"Wed",null,null,null,null,null,null,null,null,null,null,null,null,null,null,null,null,null,null,null,null,null,null,null,null,null,null,null,null,null,null,null,null,null,"Sat"]
[null,null,null,null,null,null,null,null,{"$f":"I2652+1","v":"2025-11-26"},null,null,null,null,null,null,null,null,null,null,null,null,null,null,null,null,null,null,null,null,null,null,null,null,null,null,null,null,null,null,null,null,null,{"$f":"AQ2652+1","v":"2025-11-29"}]
[]
[]
[]
[]
[]
[]
[null,null,null,null,null,null,null,null,null,null,null,null,null,null,null,null,null,null,null,null,null,null,null,null,null,null,null,null,null,null,null,null,null,null,null,null,null,null,null,null,null,null,"Sun"]
[null,null,null,null,null,null,null,null,null,null,null,null,null,null,null,null,null,null,null,null,null,null,null,null,null,null,null,null,null,null,null,null,null,null,null,null,null,null,null,null,null,null,{"$f":"AQ2668+1","v":"2025-11-30"}]
[]
[]
[]
[]
[]
[]
[null,null,"Notes:",null,null,null,null,null,null,null,null,null,null,null,null,null,null,null,null,null,null,null,null,null,null,null,null,null,null,null,null,null,null,null,null,null,"Notes:"]
[]
[]
[]
[]
[]
[null,null,{"$f":"\"Week of \"","v":"Week of "},null,null,null,null,"2025-12-01",null,null,null,null,null,null,null,null,null,null,null,null,null,null,null,null,null,null,null,null,null,null,null,null,null,null,"Week",null,{"$f":"\"Week of \"","v":"Week of "},null,null,null,null,{"$f":"H2689","v":"2025-12-01"}]
[null,null,null,null,null,null,null,null,null,null,null,null,null,null,null,null,null,null,null,null,null,null,null,null,null,null,null,null,null,null,null,null,null,null,49]
[null,null,"TO DO",null,null,null,null,null,"Mon",null,null,null,null,null,null,null,null,null,null,null,null,null,null,null,null,null,null,null,null,null,null,null,null,null,null,null,"FORWARD",null,null,null,null,null,"Thu"]
[null,null,null,null,null,null,null,null,{"$f":"H2689","v":"2025-12-01"},null,null,null,null,null,null,null,null,null,null,null,null,null,null,null,null,null,null,null,null,null,null,null,null,null,null,null,null,null,null,null,null,null,{"$f":"I2724+1","v":"2025-12-04"}]
[]
[]
[]
[]
[]
[]
[]
[]
[]
[]
[]
[]
[]
[]
[null,null,null,null,null,null,null,null,"Tue",null,null,null,null,null,null,null,null,null,null,null,null,null,null,null,null,null,null,null,null,null,null,null,null,null,null,null,null,null,null,null,null,null,"Fri"]
[null,null,null,null,null,null,null,null,{"$f":"I2692+1","v":"2025-12-02"},null,null,null,null,null,null,null,null,null,null,null,null,null,null,null,null,null,null,null,null,null,null,null,null,null,null,null,null,null,null,null,null,null,{"$f":"AQ2692+1","v":"2025-12-05"}]
[]
[]
[]
[]
[]
[]
[]
[]
[]
[]
[]
[]
[]
[]
[null,null,null,null,null,null,null,null,"Wed",null,null,null,null,null,null,null,null,null,null,null,null,null,null,null,null,null,null,null,null,null,null,null,null,null,null,null,null,null,null,null,null,null,"Sat"]
[null,null,null,null,null,null,null,null,{"$f":"I2708+1","v":"2025-12-03"},null,null,null,null,null,null,null,null,null,null,null,null,null,null,null,null,null,null,null,null,null,null,null,null,null,null,null,null,null,null,null,null,null,{"$f":"AQ2708+1","v":"2025-12-06"}]
[]
[]
[]
[]
[]
[]
[null,null,null,null,null,null,null,null,null,null,null,null,null,null,null,null,null,null,null,null,null,null,null,null,null,null,null,null,null,null,null,null,null,null,null,null,null,null,null,null,null,null,"Sun"]
[null,null,null,null,null,null,null,null,null,null,null,null,null,null,null,null,null,null,null,null,null,null,null,null,null,null,null,null,null,null,null,null,null,null,null,null,null,null,null,null,null,null,{"$f":"AQ2724+1","v":"2025-12-07"}]
[]
[]
[]
[]
[]
[]
[null,null,"Notes:",null,null,null,null,null,null,null,null,null,null,null,null,null,null,null,null,null,null,null,null,null,null,null,null,null,null,null,null,null,null,null,null,null,"Notes:"]
[]
[]
[]
[]
[]
[null,null,{"$f":"\"Week of \"","v":"Week of "},null,null,null,null,"2025-12-08",null,null,null,null,null,null,null,null,null,null,null,null,null,null,null,null,null,null,null,null,null,null,null,null,null,null,"Week",null,{"$f":"\"Week of \"","v":"Week of "},null,null,null,null,{"$f":"H2745","v":"2025-12-08"}]
[null,null,null,null,null,null,null,null,null,null,null,null,null,null,null,null,null,null,null,null,null,null,null,null,null,null,null,null,null,null,null,null,null,null,50]
[null,null,"TO DO",null,null,null,null,null,"Mon",null,null,null,null,null,null,null,null,null,null,null,null,null,null,null,null,null,null,null,null,null,null,null,null,null,null,null,"FORWARD",null,null,null,null,null,"Thu"]
[null,null,null,null,null,null,null,null,{"$f":"H2745","v":"2025-12-08"},null,null,null,null,null,null,null,null,null,null,null,null,null,null,null,null,null,null,null,null,null,null,null,null,null,null,null,null,null,null,null,null,null,{"$f":"I2780+1","v":"2025-12-11"}]
[]
[]
[]
[]
[]
[]
[]
[]
[]
[]
[]
[]
[]
[]
[null,null,null,null,null,null,null,null,"Tue",null,null,null,null,null,null,null,null,null,null,null,null,null,null,null,null,null,null,null,null,null,null,null,null,null,null,null,null,null,null,null,null,null,"Fri"]
[null,null,null,null,null,null,null,null,{"$f":"I2748+1","v":"2025-12-09"},null,null,null,null,null,null,null,null,null,null,null,null,null,null,null,null,null,null,null,null,null,null,null,null,null,null,null,null,null,null,null,null,null,{"$f":"AQ2748+1","v":"2025-12-12"}]
[]
[]
[]
[]
[]
[]
[]
[]
[]
[]
[]
[]
[]
[]
[null,null,null,null,null,null,null,null,"Wed",null,null,null,null,null,null,null,null,null,null,null,null,null,null,null,null,null,null,null,null,null,null,null,null,null,null,null,null,null,null,null,null,null,"Sat"]
[null,null,null,null,null,null,null,null,{"$f":"I2764+1","v":"2025-12-10"},null,null,null,null,null,null,null,null,null,null,null,null,null,null,null,null,null,null,null,null,null,null,null,null,null,null,null,null,null,null,null,null,null,{"$f":"AQ2764+1","v":"2025-12-13"}]
[]
[]
[]
[]
[]
[]
[null,null,null,null,null,null,null,null,null,null,null,null,null,null,null,null,null,null,null,null,null,null,null,null,null,null,null,null,null,null,null,null,null,null,null,null,null,null,null,null,null,null,"Sun"]
[null,null,null,null,null,null,null,null,null,null,null,null,null,null,null,null,null,null,null,null,null,null,null,null,null,null,null,null,null,null,null,null,null,null,null,null,null,null,null,null,null,null,{"$f":"AQ2780+1","v":"2025-12-14"}]
[]
[]
[]
[]
[]
[]
[null,null,"Notes:",null,null,null,null,null,null,null,null,null,null,null,null,null,null,null,null,null,null,null,null,null,null,null,null,null,null,null,null,null,null,null,null,null,"Notes:"]
[]
[]
[]
[]
[]
[null,null,{"$f":"\"Week of \"","v":"Week of "},null,null,null,null,"2025-12-15",null,null,null,null,null,null,null,null,null,null,null,null,null,null,null,null,null,null,null,null,null,null,null,null,null,null,"Week",null,{"$f":"\"Week of \"","v":"Week of "},null,null,null,null,{"$f":"H2801","v":"2025-12-15"}]
[null,null,null,null,null,null,null,null,null,null,null,null,null,null,null,null,null,null,null,null,null,null,null,null,null,null,null,null,null,null,null,null,null,null,51]
[null,null,"TO DO",null,null,null,null,null,"Mon",null,null,null,null,null,null,null,null,null,null,null,null,null,null,null,null,null,null,null,null,null,null,null,null,null,null,null,"FORWARD",null,null,null,null,null,"Thu"]
[null,null,null,null,null,null,null,null,{"$f":"H2801","v":"2025-12-15"},null,null,null,null,null,null,null,null,null,null,null,null,null,null,null,null,null,null,null,null,null,null,null,null,null,null,null,null,null,null,null,null,null,{"$f":"I2836+1","v":"2025-12-18"}]
[]
[]
[]
[]
[]
[]
[]
[]
[]
[]
[]
[]
[]
[]
[null,null,null,null,null,null,null,null,"Tue",null,null,null,null,null,null,null,null,null,null,null,null,null,null,null,null,null,null,null,null,null,null,null,null,null,null,null,null,null,null,null,null,null,"Fri"]
[null,null,null,null,null,null,null,null,{"$f":"I2804+1","v":"2025-12-16"},null,null,null,null,null,null,null,null,null,null,null,null,null,null,null,null,null,null,null,null,null,null,null,null,null,null,null,null,null,null,null,null,null,{"$f":"AQ2804+1","v":"2025-12-19"}]
[]
[]
[]
[]
[]
[]
[]
[]
[]
[]
[]
[]
[]
[]
[null,null,null,null,null,null,null,null,"Wed",null,null,null,null,null,null,null,null,null,null,null,null,null,null,null,null,null,null,null,null,null,null,null,null,null,null,null,null,null,null,null,null,null,"Sat"]
[null,null,null,null,null,null,null,null,{"$f":"I2820+1","v":"2025-12-17"},null,null,null,null,null,null,null,null,null,null,null,null,null,null,null,null,null,null,null,null,null,null,null,null,null,null,null,null,null,null,null,null,null,{"$f":"AQ2820+1","v":"2025-12-20"}]
[]
[]
[]
[]
[]
[]
[null,null,null,null,null,null,null,null,null,null,null,null,null,null,null,null,null,null,null,null,null,null,null,null,null,null,null,null,null,null,null,null,null,null,null,null,null,null,null,null,null,null,"Sun"]
[null,null,null,null,null,null,null,null,null,null,null,null,null,null,null,null,null,null,null,null,null,null,null,null,null,null,null,null,null,null,null,null,null,null,null,null,null,null,null,null,null,null,{"$f":"AQ2836+1","v":"2025-12-21"}]
[]
[]
[]
[]
[]
[]
[null,null,"Notes:",null,null,null,null,null,null,null,null,null,null,null,null,null,null,null,null,null,null,null,null,null,null,null,null,null,null,null,null,null,null,null,null,null,"Notes:"]
[]
[]
[]
[]
[]
[null,null,{"$f":"\"Week of \"","v":"Week of "},null,null,null,null,"2025-12-22",null,null,null,null,null,null,null,null,null,null,null,null,null,null,null,null,null,null,null,null,null,null,null,null,null,null,"Week",null,{"$f":"\"Week of \"","v":"Week of "},null,null,null,null,{"$f":"H2857","v":"2025-12-22"}]
[null,null,null,null,null,null,null,null,null,null,null,null,null,null,null,null,null,null,null,null,null,null,null,null,null,null,null,null,null,null,null,null,null,null,52]
[null,null,"TO DO",null,null,null,null,null,"Mon",null,null,null,null,null,null,null,null,null,null,null,null,null,null,null,null,null,null,null,null,null,null,null,null,null,null,null,"FORWARD",null,null,null,null,null,"Thu"]
[null,null,null,null,null,null,null,null,{"$f":"H2857","v":"2025-12-22"},null,null,null,null,null,null,null,null,null,null,null,null,null,null,null,null,null,null,null,null,null,null,null,null,null,null,null,null,null,null,null,null,null,{"$f":"I2892+1","v":"2025-12-25"}]
[]
[]
[]
[]
[]
[]
[]
[]
[]
[]
[]
[]
[]
[]
[null,null,null,null,null,null,null,null,"Tue",null,null,null,null,null,null,null,null,null,null,null,null,null,null,null,null,null,null,null,null,null,null,null,null,null,null,null,null,null,null,null,null,null,"Fri"]
[null,null,null,null,null,null,null,null,{"$f":"I2860+1","v":"2025-12-23"},null,null,null,null,null,null,null,null,null,null,null,null,null,null,null,null,null,null,null,null,null,null,null,null,null,null,null,null,null,null,null,null,null,{"$f":"AQ2860+1","v":"2025-12-26"}]
[]
[]
[]
[]
[]
[]
[]
[]
[]
[]
[]
[]
[]
[]
[null,null,null,null,null,null,null,null,"Wed",null,null,null,null,null,null,null,null,null,null,null,null,null,null,null,null,null,null,null,null,null,null,null,null,null,null,null,null,null,null,null,null,null,"Sat"]
[null,null,null,null,null,null,null,null,{"$f":"I2876+1","v":"2025-12-24"},null,null,null,null,null,null,null,null,null,null,null,null,null,null,null,null,null,null,null,null,null,null,null,null,null,null,null,null,null,null,null,null,null,{"$f":"AQ2876+1","v":"2025-12-27"}]
[]
[]
[]
[]
[]
[]
[null,null,null,null,null,null,null,null,null,null,null,null,null,null,null,null,null,null,null,null,null,null,null,null,null,null,null,null,null,null,null,null,null,null,null,null,null,null,null,null,null,null,"Sun"]
[null,null,null,null,null,null,null,null,null,null,null,null,null,null,null,null,null,null,null,null,null,null,null,null,null,null,null,null,null,null,null,null,null,null,null,null,null,null,null,null,null,null,{"$f":"AQ2892+1","v":"2025-12-28"}]
[]
[]
[]
[]
[]
[]
[null,null,"Notes:",null,null,null,null,null,null,null,null,null,null,null,null,null,null,null,null,null,null,null,null,null,null,null,null,null,null,null,null,null,null,null,null,null,"Notes:"]

{"sheet":"Data","index":1,"n_rows":53,"n_cols":3,"rows_kept":53,"cut":false,"hidden":false,"merged":[]}
["StRng","Wk","EndRng"]
[1,1,56]
[57,2,112]
[113,3,168]
[169,4,224]
[225,5,280]
[281,6,336]
[337,7,392]
[393,8,448]
[449,9,504]
[505,10,560]
[561,11,616]
[617,12,672]
[673,13,728]
[729,14,784]
[785,15,840]
[841,16,896]
[897,17,952]
[953,18,1008]
[1009,19,1064]
[1065,20,1120]
[1121,21,1176]
[1177,22,1232]
[1233,23,1288]
[1289,24,1344]
[1345,25,1400]
[1401,26,1456]
[1457,27,1512]
[1513,28,1568]
[1569,29,1624]
[1625,30,1680]
[1681,31,1736]
[1737,32,1792]
[1793,33,1848]
[1849,34,1904]
[1905,35,1960]
[1961,36,2016]
[2017,37,2072]
[2073,38,2128]
[2129,39,2184]
[2185,40,2240]
[2241,41,2296]
[2297,42,2352]
[2353,43,2408]
[2409,44,2464]
[2465,45,2520]
[2521,46,2576]
[2577,47,2632]
[2633,48,2688]
[2689,49,2744]
[2745,50,2800]
[2801,51,2856]
[2857,52,2912]